Workbook

Sheet 1. Info
AB1: Algoma Power Inc.
AB2: Atikokan Hydro Inc.
AB3: Attawapiskat Power Corporation
AB4: Bluewater Power Distribution Corp.
AB5: Brant County Power
AB6: Brantford Power Inc.
AB7: Burlington Hydro Inc.
AB8: Cambridge and North Dumfries Hydro
AB9: Canadian Niagara Power Inc. – Eastern Ontario Power/Fort Erie/Port Colborne
AB10: Centre Wellington Hydro Ltd.
AB11: Chapleau Public Utilities Corporation
AB12: COLLUS Power Corp.
AB13: Cooperative Hydro Embrun Inc.
AB14: E.L.K. Energy Inc.
C15: Utility Name | D15: Niagara Peninsula Energy Inc. | AB15: Enersource Hydro Mississauga Inc.
AB16: Entegrus Powerlines Inc.
C17: Assigned EB Number | D17: EB-2012-0150 | AB17: ENWIN Utilities Ltd.
AB18: Erie Thames Powerlines Corp.
C19: Name and Title | D19: Suzanne Wilson, VP Finance | AB19: Espanola Regional Hydro Distribution Corporation
AB20: Essex Powerlines Corporation
C21: Phone Number | D21: 905-353-6004 | AB21: Festival Hydro Inc.
AB22: Fort Albany Power Corporation
C23: Email Address | D23: suzanne.wilson@npei.ca | AB23: Fort Frances Power Corporation
AB24: Greater Sudbury Hydro Inc.
C25: Date | D25: 2013-05-01 | AB25: Grimsby Power Inc.
AB26: Guelph Hydro Electric Systems Inc.
C27: Last COS Re-based Year | D27: 2011 | AB27: Haldimand County Hydro Inc.
AB28: Halton Hills Hydro Inc.
AB29: Hearst Power Distribution Co. Ltd.
AB30: Horizon Utilities Corporation
AB31: Hydro 2000 Inc.
AB32: Hydro Hawkesbury Inc.
AB33: Hydro One Brampton Networks Inc.
AB34: Hydro One Networks Inc.
AB35: Hydro One Remote Communities Inc.
AB36: Hydro Ottawa Limited
AB37: Innisfil Hydro Dist. Systems Limited
AB38: Kashechewan Power Corporation
AB39: Kenora Hydro Electric Corporation Ltd.
AB40: Kingston Hydro Corporation
AB41: Kitchener-Wilmot Hydro Inc.
AB42: Lakefront Utilities Inc.
AB43: Lakeland Power Distribution Ltd.
AB44: London Hydro Inc.
AB45: Midland Power Utility Corporation
AB46: Milton Hydro Distribution Inc.
AB47: Newmarket – Tay Power Distribution Ltd.
AB48: Niagara Peninsula Energy Inc.
AB49: Niagara-on-the-Lake Hydro Inc.
AB50: Norfolk Power Distribution Ltd.
AB51: North Bay Hydro Distribution Limited
AB52: Northern Ontario Wires Inc.
AB53: Oakville Hydro Distribution Inc.
AB54: Orangeville Hydro Limited
AB55: Orillia Power Distribution Corp.
AB56: Oshawa PUC Networks Inc.
AB57: Ottawa River Power Corporation
AB58: Parry Sound Power Corporation
AB59: Peterborough Distribution Inc.
AB60: PowerStream Inc.
AB61: PUC Distribution Inc.
AB62: Renfrew Hydro Inc.
AB63: Rideau St. Lawrence Distribution Inc.
AB64: St. Thomas Energy Inc.
AB65: Sioux Lookout Hydro Inc.
AB66: Thunder Bay Hydro Electricity Distribution
AB67: Tillsonburg Hydro Inc.
AB68: Toronto Hydro-Electric System Limited
AB69: Veridian Connections Inc.
AB70: Wasaga Distribution Inc.
AB71: Waterloo North Hydro Inc.
AB72: Welland Hydro Electric System Corp.
AB73: Wellington North Power Inc.
AB74: West Coast Huron Energy Inc.
AB75: Westario Power Inc.
AB76: Whitby Hydro Electric Corporation
AB77: Woodstock Hydro Services Inc.

Sheet 2. Table of Contents
C12: 1. Info | E12: 8. Transformer Allowance
C13: 2. Table of Contents | E13: 9. R C Ratio Revenue
C14: 3. Re-Based Bill Det & Rates | E14: 10. Proposed R C Ratio Adj
C15: 4. Removal of Rate Adders | E15: 11. Proposed Revenue
C16: 5. Re-Based Rev From Rates | E16: 12. Proposed F V Rev Alloc
C17: 6. Decision Cost Revenue Adj | E17: 13. Proposed F V Rates
C18: 7. Revenue Offsets Allocation | E18: 14. Adjust To Proposed Rates

Sheet 3. Re-Based Bill Det & Rates
A10: The purpose of this sheet is to set up the rate classes, enter the re-based billing determinants from your last cost of service application and enter the current service charge and volumetric distribution rates as found on your May 1, 2012 (or subsequent) Tariff of rates and charges.
B20: Control | C20: Rate Group | D20: Rate Class | E20: Fixed Metric | F20: Vol Metric | G20: OEB Audit | I20: Re-based Billed Customers or Connections | J20: Re-based Billed kWh | K20: Re-based Billed kW | M20: Current Tariff Service Charge | N20: Current Tariff Distribution Volumetric Rate kWh | O20: Current Tariff Distribution Volumetric Rate kW | AA20: Residential | AB20: Threshold | AD20: Less Than 50 | AE20: Threshold | AG20: Greater Than 50 | AH20: Threshold | AJ20: Large Use | AK20: Threshold | AM20: USL | AN20: Threshold | AP20: Sentinel | AQ20: Threshold | AS20: Street | AT20: Threshold | AV20: EMB | AY20: SB
I21: A | J21: B | K21: C | M21: D | N21: E | O21: F | AA21: Residential | AB21: 250 / 2,250 | AD21: General Service Less Than 50 kW | AE21: 2,000 / 20,000 | AG21: General Service 50 to 499 kW | AH21: 50 / 500 | AJ21: Large Use | AK21: 5,000 / 100,000 | AM21: Unmetered Scattered Load | AN21: 500 / 20,000 | AP21: Sentinel Lighting | AQ21: 0.2 / 1.0 | AS21: Street Lighting | AT21: 0.2 / 1.0 | AV21: Embedded Distributor | AY21: Stand-By
B22: 1 | C22: RES | D22: Residential | E22: Customer | F22: kWh | I22: 46900 | J22: 462790265 | M22: 15.76 | N22: 0.0158 | AA22: Residential Regular | AB22: 250 / 2,250 | AD22: General Service Less Than 50 kW – Single Phase energy-billed [G1] | AE22: 2,000 / 20,000 | AG22: General Service 50 to 699 kW | AH22: 50 / 700 | AJ22: Large Use - Regular | AK22: 5,000 / 100,000 | AV22: Low Voltage Wheeling Charge Rate | AY22: Standby Power
B23: 2 | C23: GSLT50 | D23: General Service Less Than 50 kW | E23: Customer | F23: kWh | I23: 4352 | J23: 122331880 | M23: 37.09 | N23: 0.0135 | AA23: Residential Urban | AB23: 250 / 2,250 | AD23: General Service Less Than 50 kW – Three Phase energy-billed [G3] | AE23: 2,000 / 20,000 | AG23: General Service 50 to 999 kW | AH23: 50 / 1,000 | AJ23: Large Use > 5000 kW | AK23: 5,000 / 100,000 | AY23: Standby Power – INTERIM APPROVAL
B24: 3 | C24: GSGT50 | D24: General Service 50 to 4,999 kW | E24: Customer | F24: kW | I24: 848 | J24: 628090148 | K24: 1818411 | M24: 177.4 | O24: 4.1887 | AA24: Residential Urban Year-Round | AB24: 250 / 2,250 | AD24: General Service Less Than 50 kW – Transmission Class energy-billed [T] | AE24: 2,000 / 20,000 | AG24: General Service 50 to 999 kW - Interval Metered | AH24: 50 / 1,000 | AJ24: Large Use - 3TS | AK24: 5,000 / 100,000 | AY24: Standby Power - APPROVED ON AN INTERIM BASIS
B25: 4 | C25: USL | D25: Unmetered Scattered Load | E25: Connection | F25: kWh | I25: 465 | J25: 2335428 | M25: 19.17 | N25: 0.0134 | AA25: Residential Suburban | AB25: 250 / 2,250 | AD25: General Service Less Than 50 kW – Urban energy-billed [UG] | AE25: 2,000 / 20,000 | AG25: General Service 50 to 1,000 kW | AH25: 50 / 1,000 | AJ25: Large Use - Ford Annex | AK25: 5,000 / 100,000 | AY25: Standby - General Service 50 - 1,000 kW
B26: 5 | C26: Sen | D26: Sentinel Lighting | E26: Connection | F26: kW | I26: 560 | J26: 292817 | K26: 809 | M26: 9.76 | O26: 12.1787 | AA26: Residential Suburban Seasonal | AB26: 250 / 2,250 | AD26: Westport Sewage Treatment Plant | AE26: 2,000 / 20,000 | AG26: General Service 50 to 1,000 kW - Interval Meters | AH26: 50 / 1,500 | AY26: Standby Power General Service 50 to 1,499 kW
B27: 6 | C27: SL | D27: Street Lighting | E27: Connection | F27: kW | I27: 12408 | J27: 7467591 | K27: 20107 | M27: 0.94 | O27: 3.688 | AA27: Residential Suburban Year Round | AB27: 250 / 2,250 | AD27: Farms – Single Phase energy-billed [F1] | AE27: 2,000 / 20,000 | AG27: General Service 50 to 1,000 kW - Non Interval Meters | AH27: 50 / 2,500 | AY27: Standby - General Service 1,000 - 5,000 kW
B28: 7 | C28: NA | D28: Rate Class 7 | E28: NA | F28: NA | AA28: Residential - Time of Use | AB28: 250 / 2,250 | AD28: Small Commercial and USL - per meter | AE28: 2,000 / 20,000 | AG28: General Service 50 to 1,499 kW | AH28: 50 / 3,000 | AY28: Standby Power General Service 1,500 to 4,999 kW
B29: 8 | C29: NA | D29: Rate Class 8 | E29: NA | F29: NA | AA29: Residential - Hensall | AB29: 250 / 2,250 | AD29: Small Commercial and USL - per connection | AE29: 2,000 / 20,000 | AG29: General Service 50 to 1,499 kW - Interval Metered | AH29: 50 / 3,000 | AY29: Standby - Large Use
B30: 9 | C30: NA | D30: Rate Class 9 | E30: NA | F30: NA | AA30: Residential – High Density [R1] | AB30: 250 / 2,250 | AG30: General Service 50 to 2,499 kW | AH30: 50 / 5,000 | AY30: Standby Power General Service Large Use
B31: 10 | C31: NA | D31: Rate Class 10 | E31: NA | F31: NA | AA31: Residential – Normal Density [R2] | AB31: 250 / 2,250 | AG31: General Service 50 to 2,999 kW | AH31: 50 / 5,000 | AY31: Standby Distribution Service
B32: 11 | C32: NA | D32: Rate Class 11 | E32: NA | F32: NA | AA32: Seasonal Residential – High Density [R3] | AB32: 250 / 2,250 | AG32: General Service 50 to 2,999 kW - Time of Use | AH32: 50 / 5,000
B33: 12 | C33: NA | D33: Rate Class 12 | E33: NA | F33: NA | AA33: Seasonal Residential – Normal Density [R4] | AB33: 250 / 2,250 | AG33: General Service 50 to 4,999 kW | AH33: 50 / 5,000
B34: 13 | C34: NA | D34: Rate Class 13 | E34: NA | F34: NA | AA34: Residential – Urban [UR] | AB34: 250 / 2,250 | AG34: General Service 50 to 4,999 kW – Interval Metered | AH34: 50 / 5,000
B35: 14 | C35: NA | D35: Rate Class 14 | E35: NA | F35: NA | AG35: General Service 50 to 4,999 kW - Time of Use | AH35: 50 / 5,000
B36: 15 | C36: NA | D36: Rate Class 15 | E36: NA | F36: NA | AG36: General Service 50 to 4,999 kW (CoGeneration) | AH36: 500 / 5,000
B37: 16 | C37: NA | D37: Rate Class 16 | E37: NA | F37: NA | AG37: General Service 50 to 4,999 kW (formerly Time of Use) | AH37: 700 / 5,000
B38: 17 | C38: NA | D38: Rate Class 17 | E38: NA | F38: NA | AG38: General Service 500 to 4,999 kW | AH38: 1,000 / 3,000
B39: 18 | C39: NA | D39: Rate Class 18 | E39: NA | F39: NA | AG39: General Service 700 to 4,999 kW | AH39: 1,000 / 5,000
B40: 19 | C40: NA | D40: Rate Class 19 | E40: NA | F40: NA | AG40: General Service 1,000 to 2,999 kW | AH40: 1,500 / 5,000
B41: 20 | C41: NA | D41: Rate Class 20 | E41: NA | F41: NA | AG41: General Service 1,000 to 4,999 kW | AH41: 2,500 / 5,000
B42: 21 | C42: NA | D42: Rate Class 21 | E42: NA | F42: NA | AG42: General Service 1,000 to 4,999 kW - Interval Meters | AH42: 3,000 / 5,000
B43: 22 | C43: NA | D43: Rate Class 22 | E43: NA | F43: NA | AG43: General Service 1,000 To 4,999 kW (co-generation) | AH43: 3,000 / 5,000
B44: 23 | C44: NA | D44: Rate Class 23 | E44: NA | F44: NA | AG44: General Service Greater Than 1,000 kW | AH44: 50 / 5,000
B45: 24 | C45: NA | D45: Rate Class 24 | E45: NA | F45: NA | AG45: General Service Intermediate Rate Class 1,000 To 4,999 kW (formerly Large Use Customers) | AH45: 50 / 5,000
B46: 25 | C46: NA | D46: Rate Class 25 | E46: NA | F46: NA | AG46: General Service Intermediate Rate Class 1,000 To 4,999 kW (formerly General Service > 50 kW Customers) | AH46: 50 / 5,000
AG47: General Service 1,500 to 4,999 kW
AG48: General Service Equal To Or Greater Than 1,500 kW
AG49: General Service Equal To Or Greater Than 1,500 kW - Interval Metered
AG50: General Service Intermediate 1,000 To 4,999 kW
AG51: General Service 2,500 to 4,999 kW
AG52: General Service 3,000 to 4,999 kW
AG53: General Service 3,000 to 4,999 kW - Interval Metered
AG54: General Service 3,000 to 4,999 kW - Intermediate Use
AG55: General Service 3,000 to 4,999 kW - Time of Use
AG56: Intermediate With Self Generation
AG57: General Service - Commercial
AG58: General Service - Institutional
AG59: Farms – Three Phase energy-billed [F3]

Sheet 4. Removal of Rate Adders
A10: The purpose of this sheet is to remove any rate adders included in current rates. Most applicants will not need to make an entry on this sheet.
C20: Rate Class | E20: Current Tariff Service Charge | F20: Current Tariff Distribution Volumetric Rate kWh | G20: Current Tariff Distribution Volumetric Rate kW | I20: Service Charge Rate Adders | J20: Distribution Volumetric kWh Rate Adders | K20: Distribution Volumetric kW Rate Adders | M20: Base Service Charge | N20: Base Distribution Volumetric Rate kWh | O20: Base Distribution Volumetric Rate kW
E21: A | F21: B | G21: C | I21: D | J21: E | K21: F | M21: H = A - D | N21: I = B - E | O21: J = C - F
C22: ='3. Re-Based Bill Det & Rates'!D22 -> Residential | E22: ='3. Re-Based Bill Det & Rates'!M22 -> 15.76 | F22: ='3. Re-Based Bill Det & Rates'!N22 -> 0.0158 | G22: ='3. Re-Based Bill Det & Rates'!O22 -> 0 | I22: 0 | J22: 0 | K22: 0 | M22: =E22-I22 -> 15.76 | N22: =F22-J22 -> 0.0158 | O22: =G22-K22 -> 0
C23: ='3. Re-Based Bill Det & Rates'!D23 -> General Service Less Than 50 kW | E23: ='3. Re-Based Bill Det & Rates'!M23 -> 37.09 | F23: ='3. Re-Based Bill Det & Rates'!N23 -> 0.0135 | G23: ='3. Re-Based Bill Det & Rates'!O23 -> 0 | I23: 0 | J23: 0 | K23: 0 | M23: =E23-I23 -> 37.09 | N23: =F23-J23 -> 0.0135 | O23: =G23-K23 -> 0
C24: ='3. Re-Based Bill Det & Rates'!D24 -> General Service 50 to 4,999 kW | E24: ='3. Re-Based Bill Det & Rates'!M24 -> 177.4 | F24: ='3. Re-Based Bill Det & Rates'!N24 -> 0 | G24: ='3. Re-Based Bill Det & Rates'!O24 -> 4.1887 | I24: 0 | J24: 0 | K24: 0 | M24: 177.4 | N24: 0 | O24: 4.1887
C25: ='3. Re-Based Bill Det & Rates'!D25 -> Unmetered Scattered Load | E25: ='3. Re-Based Bill Det & Rates'!M25 -> 19.17 | F25: ='3. Re-Based Bill Det & Rates'!N25 -> 0.0134 | G25: ='3. Re-Based Bill Det & Rates'!O25 -> 0 | I25: 0 | J25: 0 | K25: 0 | M25: 19.17 | N25: 0.0134 | O25: 0
C26: ='3. Re-Based Bill Det & Rates'!D26 -> Sentinel Lighting | E26: ='3. Re-Based Bill Det & Rates'!M26 -> 9.76 | F26: ='3. Re-Based Bill Det & Rates'!N26 -> 0 | G26: ='3. Re-Based Bill Det & Rates'!O26 -> 12.1787 | I26: 0 | J26: 0 | K26: 0 | M26: 9.76 | N26: 0 | O26: 12.1787
C27: ='3. Re-Based Bill Det & Rates'!D27 -> Street Lighting | E27: ='3. Re-Based Bill Det & Rates'!M27 -> 0.94 | F27: ='3. Re-Based Bill Det & Rates'!N27 -> 0 | G27: ='3. Re-Based Bill Det & Rates'!O27 -> 3.688 | I27: 0 | J27: 0 | K27: 0 | M27: 0.94 | N27: 0 | O27: 3.688
C28: ='3. Re-Based Bill Det & Rates'!D28 -> Rate Class 7 | E28: ='3. Re-Based Bill Det & Rates'!M28 -> 0 | F28: ='3. Re-Based Bill Det & Rates'!N28 -> 0 | G28: ='3. Re-Based Bill Det & Rates'!O28 -> 0 | I28: 0 | J28: 0 | K28: 0 | M28: 0 | N28: 0 | O28: 0
C29: ='3. Re-Based Bill Det & Rates'!D29 -> Rate Class 8 | E29: ='3. Re-Based Bill Det & Rates'!M29 -> 0 | F29: ='3. Re-Based Bill Det & Rates'!N29 -> 0 | G29: ='3. Re-Based Bill Det & Rates'!O29 -> 0 | I29: 0 | J29: 0 | K29: 0 | M29: 0 | N29: 0 | O29: 0
C30: ='3. Re-Based Bill Det & Rates'!D30 -> Rate Class 9 | E30: ='3. Re-Based Bill Det & Rates'!M30 -> 0 | F30: ='3. Re-Based Bill Det & Rates'!N30 -> 0 | G30: ='3. Re-Based Bill Det & Rates'!O30 -> 0 | I30: 0 | J30: 0 | K30: 0 | M30: 0 | N30: 0 | O30: 0
C31: ='3. Re-Based Bill Det & Rates'!D31 -> Rate Class 10 | E31: ='3. Re-Based Bill Det & Rates'!M31 -> 0 | F31: ='3. Re-Based Bill Det & Rates'!N31 -> 0 | G31: ='3. Re-Based Bill Det & Rates'!O31 -> 0 | I31: 0 | J31: 0 | K31: 0 | M31: 0 | N31: 0 | O31: 0
C32: ='3. Re-Based Bill Det & Rates'!D32 -> Rate Class 11 | E32: ='3. Re-Based Bill Det & Rates'!M32 -> 0 | F32: ='3. Re-Based Bill Det & Rates'!N32 -> 0 | G32: ='3. Re-Based Bill Det & Rates'!O32 -> 0 | I32: 0 | J32: 0 | K32: 0 | M32: 0 | N32: 0 | O32: 0
C33: ='3. Re-Based Bill Det & Rates'!D33 -> Rate Class 12 | E33: ='3. Re-Based Bill Det & Rates'!M33 -> 0 | F33: ='3. Re-Based Bill Det & Rates'!N33 -> 0 | G33: ='3. Re-Based Bill Det & Rates'!O33 -> 0 | I33: 0 | J33: 0 | K33: 0 | M33: 0 | N33: 0 | O33: 0
C34: ='3. Re-Based Bill Det & Rates'!D34 -> Rate Class 13 | E34: ='3. Re-Based Bill Det & Rates'!M34 -> 0 | F34: ='3. Re-Based Bill Det & Rates'!N34 -> 0 | G34: ='3. Re-Based Bill Det & Rates'!O34 -> 0 | I34: 0 | J34: 0 | K34: 0 | M34: 0 | N34: 0 | O34: 0
C35: ='3. Re-Based Bill Det & Rates'!D35 -> Rate Class 14 | E35: ='3. Re-Based Bill Det & Rates'!M35 -> 0 | F35: ='3. Re-Based Bill Det & Rates'!N35 -> 0 | G35: ='3. Re-Based Bill Det & Rates'!O35 -> 0 | I35: 0 | J35: 0 | K35: 0 | M35: 0 | N35: 0 | O35: 0
C36: ='3. Re-Based Bill Det & Rates'!D36 -> Rate Class 15 | E36: ='3. Re-Based Bill Det & Rates'!M36 -> 0 | F36: ='3. Re-Based Bill Det & Rates'!N36 -> 0 | G36: ='3. Re-Based Bill Det & Rates'!O36 -> 0 | I36: 0 | J36: 0 | K36: 0 | M36: 0 | N36: 0 | O36: 0
C37: ='3. Re-Based Bill Det & Rates'!D37 -> Rate Class 16 | E37: ='3. Re-Based Bill Det & Rates'!M37 -> 0 | F37: ='3. Re-Based Bill Det & Rates'!N37 -> 0 | G37: ='3. Re-Based Bill Det & Rates'!O37 -> 0 | I37: 0 | J37: 0 | K37: 0 | M37: 0 | N37: 0 | O37: 0
C38: ='3. Re-Based Bill Det & Rates'!D38 -> Rate Class 17 | E38: ='3. Re-Based Bill Det & Rates'!M38 -> 0 | F38: ='3. Re-Based Bill Det & Rates'!N38 -> 0 | G38: ='3. Re-Based Bill Det & Rates'!O38 -> 0 | I38: 0 | J38: 0 | K38: 0 | M38: 0 | N38: 0 | O38: 0
C39: ='3. Re-Based Bill Det & Rates'!D39 -> Rate Class 18 | E39: ='3. Re-Based Bill Det & Rates'!M39 -> 0 | F39: ='3. Re-Based Bill Det & Rates'!N39 -> 0 | G39: ='3. Re-Based Bill Det & Rates'!O39 -> 0 | I39: 0 | J39: 0 | K39: 0 | M39: 0 | N39: 0 | O39: 0
C40: ='3. Re-Based Bill Det & Rates'!D40 -> Rate Class 19 | E40: ='3. Re-Based Bill Det & Rates'!M40 -> 0 | F40: ='3. Re-Based Bill Det & Rates'!N40 -> 0 | G40: ='3. Re-Based Bill Det & Rates'!O40 -> 0 | I40: 0 | J40: 0 | K40: 0 | M40: 0 | N40: 0 | O40: 0
C41: ='3. Re-Based Bill Det & Rates'!D41 -> Rate Class 20 | E41: ='3. Re-Based Bill Det & Rates'!M41 -> 0 | F41: ='3. Re-Based Bill Det & Rates'!N41 -> 0 | G41: ='3. Re-Based Bill Det & Rates'!O41 -> 0 | I41: 0 | J41: 0 | K41: 0 | M41: 0 | N41: 0 | O41: 0
C42: ='3. Re-Based Bill Det & Rates'!D42 -> Rate Class 21 | E42: ='3. Re-Based Bill Det & Rates'!M42 -> 0 | F42: ='3. Re-Based Bill Det & Rates'!N42 -> 0 | G42: ='3. Re-Based Bill Det & Rates'!O42 -> 0 | I42: 0 | J42: 0 | K42: 0 | M42: 0 | N42: 0 | O42: 0
C43: ='3. Re-Based Bill Det & Rates'!D43 -> Rate Class 22 | E43: ='3. Re-Based Bill Det & Rates'!M43 -> 0 | F43: ='3. Re-Based Bill Det & Rates'!N43 -> 0 | G43: ='3. Re-Based Bill Det & Rates'!O43 -> 0 | I43: 0 | J43: 0 | K43: 0 | M43: 0 | N43: 0 | O43: 0
C44: ='3. Re-Based Bill Det & Rates'!D44 -> Rate Class 23 | E44: ='3. Re-Based Bill Det & Rates'!M44 -> 0 | F44: ='3. Re-Based Bill Det & Rates'!N44 -> 0 | G44: ='3. Re-Based Bill Det & Rates'!O44 -> 0 | I44: 0 | J44: 0 | K44: 0 | M44: 0 | N44: 0 | O44: 0
C45: ='3. Re-Based Bill Det & Rates'!D45 -> Rate Class 24 | E45: ='3. Re-Based Bill Det & Rates'!M45 -> 0 | F45: ='3. Re-Based Bill Det & Rates'!N45 -> 0 | G45: ='3. Re-Based Bill Det & Rates'!O45 -> 0 | I45: 0 | J45: 0 | K45: 0 | M45: 0 | N45: 0 | O45: 0
C46: ='3. Re-Based Bill Det & Rates'!D46 -> Rate Class 25 | E46: ='3. Re-Based Bill Det & Rates'!M46 -> 0 | F46: ='3. Re-Based Bill Det & Rates'!N46 -> 0 | G46: ='3. Re-Based Bill Det & Rates'!O46 -> 0 | I46: 0 | J46: 0 | K46: 0 | M46: 0 | N46: 0 | O46: 0

Sheet 5. Re-Based Rev From Rates
A11: The purpose of this sheet is to calculate current revenue from rate classes.
C20: Rate Class | E20: Re-based Billed Customers or Connections | F20: Re-based Billed kWh | G20: Re-based Billed kW | I20: Current Base Service Charge | J20: Current Base Distribution Volumetric Rate kWh | K20: Current Base Distribution Volumetric Rate kW | M20: Service Charge Revenue | N20: Distribution Volumetric Rate Revenue kWh | O20: Distribution Volumetric Rate Revenue kW | P20: Revenue Requirement from Rates | R20: Service Charge % Revenue | S20: Distribution Volumetric Rate % Revenue kWh | T20: Distribution Volumetric Rate % Revenue kW | U20: Total % Revenue
E21: A | F21: B | G21: C | I21: D | J21: E | K21: F | M21: G = A * D *12 | N21: H = B * E | O21: I = C * F | P21: J = G + H + I | R21: K = G / J | S21: L = H / J | T21: M = I / J | U21: N = J / R
C22: ='3. Re-Based Bill Det & Rates'!D22 -> Residential | E22: ='3. Re-Based Bill Det & Rates'!I22 -> 46900 | F22: ='3. Re-Based Bill Det & Rates'!J22 -> 462790265 | G22: ='3. Re-Based Bill Det & Rates'!K22 -> 0 | I22: ='4. Removal of Rate Adders'!M22 -> 15.76 | J22: ='4. Removal of Rate Adders'!N22 -> 0.0158 | K22: ='4. Removal of Rate Adders'!O22 -> 0 | M22: =IF(ISERROR(E22*I22*12),0,E22*I22*12) -> 8869728 | N22: =IF(ISERROR(F22*J22),0,F22*J22) -> 7312086.187 | O22: =IF(ISERROR(G22*K22),0,G22*K22) -> 0 | P22: =SUM(M22:O22) -> 16181814.19 | R22: =IF(ISERROR(M22/P22),"",M22/P22) -> 0.5481293937 | S22: =IF(ISERROR(N22/P22),"",N22/P22) -> 0.4518706063 | T22: =IF(ISERROR(O22/P22),"",O22/P22) -> 0 | U22: =IF(ISERROR(P22/P$47),"",P22/P$47) -> 0.5463118766
C23: ='3. Re-Based Bill Det & Rates'!D23 -> General Service Less Than 50 kW | E23: ='3. Re-Based Bill Det & Rates'!I23 -> 4352 | F23: ='3. Re-Based Bill Det & Rates'!J23 -> 122331880 | G23: ='3. Re-Based Bill Det & Rates'!K23 -> 0 | I23: ='4. Removal of Rate Adders'!M23 -> 37.09 | J23: ='4. Removal of Rate Adders'!N23 -> 0.0135 | K23: ='4. Removal of Rate Adders'!O23 -> 0 | M23: =IF(ISERROR(E23*I23*12),0,E23*I23*12) -> 1936988.16 | N23: =IF(ISERROR(F23*J23),0,F23*J23) -> 1651480.38 | O23: =IF(ISERROR(G23*K23),0,G23*K23) -> 0 | P23: =SUM(M23:O23) -> 3588468.54 | R23: =IF(ISERROR(M23/P23),"",M23/P23) -> 0.5397812851 | S23: =IF(ISERROR(N23/P23),"",N23/P23) -> 0.4602187149 | T23: =IF(ISERROR(O23/P23),"",O23/P23) -> 0 | U23: =IF(ISERROR(P23/P$47),"",P23/P$47) -> 0.1211497648
C24: ='3. Re-Based Bill Det & Rates'!D24 -> General Service 50 to 4,999 kW | E24: ='3. Re-Based Bill Det & Rates'!I24 -> 848 | F24: ='3. Re-Based Bill Det & Rates'!J24 -> 628090148 | G24: ='3. Re-Based Bill Det & Rates'!K24 -> 1818411 | I24: ='4. Removal of Rate Adders'!M24 -> 177.4 | J24: ='4. Removal of Rate Adders'!N24 -> 0 | K24: ='4. Removal of Rate Adders'!O24 -> 4.1887 | M24: 1805222.4 | N24: 0 | O24: 7616778.156 | P24: 9422000.556 | R24: 0.1915965075 | S24: 0 | T24: 0.8084034925 | U24: 0.3180947912
C25: ='3. Re-Based Bill Det & Rates'!D25 -> Unmetered Scattered Load | E25: ='3. Re-Based Bill Det & Rates'!I25 -> 465 | F25: ='3. Re-Based Bill Det & Rates'!J25 -> 2335428 | G25: ='3. Re-Based Bill Det & Rates'!K25 -> 0 | I25: ='4. Removal of Rate Adders'!M25 -> 19.17 | J25: ='4. Removal of Rate Adders'!N25 -> 0.0134 | K25: ='4. Removal of Rate Adders'!O25 -> 0 | M25: 106968.6 | N25: 31294.7352 | O25: 0 | P25: 138263.3352 | R25: 0.7736584673 | S25: 0.2263415327 | T25: 0 | U25: 0.004667888362
C26: ='3. Re-Based Bill Det & Rates'!D26 -> Sentinel Lighting | E26: ='3. Re-Based Bill Det & Rates'!I26 -> 560 | F26: ='3. Re-Based Bill Det & Rates'!J26 -> 292817 | G26: ='3. Re-Based Bill Det & Rates'!K26 -> 809 | I26: ='4. Removal of Rate Adders'!M26 -> 9.76 | J26: ='4. Removal of Rate Adders'!N26 -> 0 | K26: ='4. Removal of Rate Adders'!O26 -> 12.1787 | M26: 65587.2 | N26: 0 | O26: 9852.5683 | P26: 75439.7683 | R26: 0.8693982163 | S26: 0 | T26: 0.1306017837 | U26: 0.002546911052
C27: ='3. Re-Based Bill Det & Rates'!D27 -> Street Lighting | E27: ='3. Re-Based Bill Det & Rates'!I27 -> 12408 | F27: ='3. Re-Based Bill Det & Rates'!J27 -> 7467591 | G27: ='3. Re-Based Bill Det & Rates'!K27 -> 20107 | I27: ='4. Removal of Rate Adders'!M27 -> 0.94 | J27: ='4. Removal of Rate Adders'!N27 -> 0 | K27: ='4. Removal of Rate Adders'!O27 -> 3.688 | M27: 139962.24 | N27: 0 | O27: 74154.616 | P27: 214116.856 | R27: 0.6536722172 | S27: 0 | T27: 0.3463277828 | U27: 0.007228768052
C28: ='3. Re-Based Bill Det & Rates'!D28 -> Rate Class 7 | M28: 0 | N28: 0 | O28: 0 | P28: 0 | U28: 0
C29: ='3. Re-Based Bill Det & Rates'!D29 -> Rate Class 8 | M29: 0 | N29: 0 | O29: 0 | P29: 0 | U29: 0
C30: ='3. Re-Based Bill Det & Rates'!D30 -> Rate Class 9 | M30: 0 | N30: 0 | O30: 0 | P30: 0 | U30: 0
C31: ='3. Re-Based Bill Det & Rates'!D31 -> Rate Class 10 | M31: 0 | N31: 0 | O31: 0 | P31: 0 | U31: 0
C32: ='3. Re-Based Bill Det & Rates'!D32 -> Rate Class 11 | M32: 0 | N32: 0 | O32: 0 | P32: 0 | U32: 0
C33: ='3. Re-Based Bill Det & Rates'!D33 -> Rate Class 12 | M33: 0 | N33: 0 | O33: 0 | P33: 0 | U33: 0
C34: ='3. Re-Based Bill Det & Rates'!D34 -> Rate Class 13 | M34: 0 | N34: 0 | O34: 0 | P34: 0 | U34: 0
C35: ='3. Re-Based Bill Det & Rates'!D35 -> Rate Class 14 | M35: 0 | N35: 0 | O35: 0 | P35: 0 | U35: 0
C36: ='3. Re-Based Bill Det & Rates'!D36 -> Rate Class 15 | M36: 0 | N36: 0 | O36: 0 | P36: 0 | U36: 0
C37: ='3. Re-Based Bill Det & Rates'!D37 -> Rate Class 16 | M37: 0 | N37: 0 | O37: 0 | P37: 0 | U37: 0
C38: ='3. Re-Based Bill Det & Rates'!D38 -> Rate Class 17 | M38: 0 | N38: 0 | O38: 0 | P38: 0 | U38: 0
C39: ='3. Re-Based Bill Det & Rates'!D39 -> Rate Class 18 | M39: 0 | N39: 0 | O39: 0 | P39: 0 | U39: 0
C40: ='3. Re-Based Bill Det & Rates'!D40 -> Rate Class 19 | M40: 0 | N40: 0 | O40: 0 | P40: 0 | U40: 0
C41: ='3. Re-Based Bill Det & Rates'!D41 -> Rate Class 20 | M41: 0 | N41: 0 | O41: 0 | P41: 0 | U41: 0
C42: ='3. Re-Based Bill Det & Rates'!D42 -> Rate Class 21 | M42: 0 | N42: 0 | O42: 0 | P42: 0 | U42: 0
C43: ='3. Re-Based Bill Det & Rates'!D43 -> Rate Class 22 | M43: 0 | N43: 0 | O43: 0 | P43: 0 | U43: 0
C44: ='3. Re-Based Bill Det & Rates'!D44 -> Rate Class 23 | M44: 0 | N44: 0 | O44: 0 | P44: 0 | U44: 0
C45: ='3. Re-Based Bill Det & Rates'!D45 -> Rate Class 24 | M45: 0 | N45: 0 | O45: 0 | P45: 0 | U45: 0
C46: ='3. Re-Based Bill Det & Rates'!D46 -> Rate Class 25 | M46: 0 | N46: 0 | O46: 0 | P46: 0 | U46: 0
M47: =SUM(M22:M46) -> 12924456.6 | N47: =SUM(N22:N46) -> 8994861.302 | O47: =SUM(O22:O46) -> 7700785.34 | P47: =SUM(P22:P46) -> 29620103.24 | U47: =SUM(U22:U46) -> 1
M48: O | N48: P | O48: Q | P48: R

Sheet 6. Decision Cost Revenue Adj
A7: The purpose of this sheet is to enter the Revenue Cost Ratios as determined from column G on Sheet "10. Proposed R C Ratio Adj" of the applicant's 2012 IRM3 Supplemental Filing Module or 2012 COS Decision and Order. Under the column labeled "Direction", the applicant can choose "No Change" (i.e: no change in that rate class ratio), "Change" (i.e: Board ordered change from COS decision) or "Rebalance" (i.e: to apply any offset adjustments required).
C20: Rate Class | D20: Direction | E20: Current Year | F20: Transition Year 1 | G20: Transition Year 2 | H20: Transition Year 3 | I20: Transition Year 4 | J20: Transition Year 5
E21: 2012 | F21: 2013 | G21: =IF(ISERROR(F21+1),"",F21+1) -> 2014 | H21: =IF(ISERROR(F21+2),"",F21+2) -> 2015 | I21: =IF(ISERROR(F21+3),"",F21+3) -> 2016 | J21: =IF(ISERROR(F21+4),"",F21+4) -> 2017
C22: ='3. Re-Based Bill Det & Rates'!D22 -> Residential | D22: No Change | E22: 0.85 | F22: 0 | G22: 0 | H22: 0 | I22: 0 | J22: 0 | L22: No Change
C23: ='3. Re-Based Bill Det & Rates'!D23 -> General Service Less Than 50 kW | D23: No Change | E23: 1.091 | F23: 0 | G23: 0 | H23: 0 | I23: 0 | J23: 0 | L23: Change
C24: ='3. Re-Based Bill Det & Rates'!D24 -> General Service 50 to 4,999 kW | D24: Change | E24: 1.4701 | F24: 1.460152 | G24: 1.460152 | H24: 1.460152 | I24: 1.460152 | J24: 1.460152 | L24: Rebalance
C25: ='3. Re-Based Bill Det & Rates'!D25 -> Unmetered Scattered Load | D25: No Change | E25: 1.015 | F25: 0 | G25: 0 | H25: 0 | I25: 0 | J25: 0
C26: ='3. Re-Based Bill Det & Rates'!D26 -> Sentinel Lighting | D26: Change | E26: 0.541 | F26: 0.7 | G26: 0.7 | H26: 0.7 | I26: 0.7 | J26: 0.7
C27: ='3. Re-Based Bill Det & Rates'!D27 -> Street Lighting | D27: Change | E27: 0.589 | F27: 0.7 | G27: 0.7 | H27: 0.7 | I27: 0.7 | J27: 0.7
C28: ='3. Re-Based Bill Det & Rates'!D28 -> Rate Class 7 | E28: 0 | F28: 0 | G28: 0 | H28: 0 | I28: 0 | J28: 0
C29: ='3. Re-Based Bill Det & Rates'!D29 -> Rate Class 8 | E29: 0 | F29: 0 | G29: 0 | H29: 0 | I29: 0 | J29: 0
C30: ='3. Re-Based Bill Det & Rates'!D30 -> Rate Class 9 | E30: 0 | F30: 0 | G30: 0 | H30: 0 | I30: 0 | J30: 0
C31: ='3. Re-Based Bill Det & Rates'!D31 -> Rate Class 10 | E31: 0 | F31: 0 | G31: 0 | H31: 0 | I31: 0 | J31: 0
C32: ='3. Re-Based Bill Det & Rates'!D32 -> Rate Class 11 | E32: 0 | F32: 0 | G32: 0 | H32: 0 | I32: 0 | J32: 0
C33: ='3. Re-Based Bill Det & Rates'!D33 -> Rate Class 12 | E33: 0 | F33: 0 | G33: 0 | H33: 0 | I33: 0 | J33: 0
C34: ='3. Re-Based Bill Det & Rates'!D34 -> Rate Class 13 | E34: 0 | F34: 0 | G34: 0 | H34: 0 | I34: 0 | J34: 0
C35: ='3. Re-Based Bill Det & Rates'!D35 -> Rate Class 14 | E35: 0 | F35: 0 | G35: 0 | H35: 0 | I35: 0 | J35: 0
C36: ='3. Re-Based Bill Det & Rates'!D36 -> Rate Class 15 | E36: 0 | F36: 0 | G36: 0 | H36: 0 | I36: 0 | J36: 0
C37: ='3. Re-Based Bill Det & Rates'!D37 -> Rate Class 16 | E37: 0 | F37: 0 | G37: 0 | H37: 0 | I37: 0 | J37: 0
C38: ='3. Re-Based Bill Det & Rates'!D38 -> Rate Class 17 | E38: 0 | F38: 0 | G38: 0 | H38: 0 | I38: 0 | J38: 0
C39: ='3. Re-Based Bill Det & Rates'!D39 -> Rate Class 18 | E39: 0 | F39: 0 | G39: 0 | H39: 0 | I39: 0 | J39: 0
C40: ='3. Re-Based Bill Det & Rates'!D40 -> Rate Class 19 | E40: 0 | F40: 0 | G40: 0 | H40: 0 | I40: 0 | J40: 0
C41: ='3. Re-Based Bill Det & Rates'!D41 -> Rate Class 20 | E41: 0 | F41: 0 | G41: 0 | H41: 0 | I41: 0 | J41: 0
C42: ='3. Re-Based Bill Det & Rates'!D42 -> Rate Class 21 | E42: 0 | F42: 0 | G42: 0 | H42: 0 | I42: 0 | J42: 0
C43: ='3. Re-Based Bill Det & Rates'!D43 -> Rate Class 22 | E43: 0 | F43: 0 | G43: 0 | H43: 0 | I43: 0 | J43: 0
C44: ='3. Re-Based Bill Det & Rates'!D44 -> Rate Class 23 | E44: 0 | F44: 0 | G44: 0 | H44: 0 | I44: 0 | J44: 0
C45: ='3. Re-Based Bill Det & Rates'!D45 -> Rate Class 24 | E45: 0 | F45: 0 | G45: 0 | H45: 0 | I45: 0 | J45: 0
C46: ='3. Re-Based Bill Det & Rates'!D46 -> Rate Class 25 | E46: 0 | F46: 0 | G46: 0 | H46: 0 | I46: 0 | J46: 0

Sheet 7. Revenue Offsets Allocation
A10: The purpose of this sheet is to allocate the Revenue Offsets (miscellaneous revenue, cell F47) found in the last COS to the various rate classes in proportion to the allocation from the Cost Allocation informational filing.
C20: Rate Class | D20: Informational Filing Revenue Offsets | E20: Percentage Split | F20: Allocated Revenue Offsets
D21: A | E21: C= A / B | F21: E = D * C
C22: ='3. Re-Based Bill Det & Rates'!D22 -> Residential | D22: 1346572 | E22: =IF(ISERROR(D22/$D$47),0,D22/$D$47) -> 0.686414711 | F22: =$F$47*E22 -> 0
C23: ='3. Re-Based Bill Det & Rates'!D23 -> General Service Less Than 50 kW | D23: 274930 | E23: =IF(ISERROR(D23/$D$47),0,D23/$D$47) -> 0.1401454928 | F23: =$F$47*E23 -> 0
C24: ='3. Re-Based Bill Det & Rates'!D24 -> General Service 50 to 4,999 kW | D24: 333440 | E24: 0.1699709494 | F24: 0
C25: ='3. Re-Based Bill Det & Rates'!D25 -> Unmetered Scattered Load | D25: 2029 | E25: 0.001034282198 | F25: 0
C26: ='3. Re-Based Bill Det & Rates'!D26 -> Sentinel Lighting | D26: 1778 | E26: 0.0009063350167 | F26: 0
C27: ='3. Re-Based Bill Det & Rates'!D27 -> Street Lighting | D27: 2998 | E27: 0.001528229685 | F27: 0
C28: ='3. Re-Based Bill Det & Rates'!D28 -> Rate Class 7 | D28: 0 | E28: 0 | F28: 0
C29: ='3. Re-Based Bill Det & Rates'!D29 -> Rate Class 8 | D29: 0 | E29: 0 | F29: 0
C30: ='3. Re-Based Bill Det & Rates'!D30 -> Rate Class 9 | D30: 0 | E30: 0 | F30: 0
C31: ='3. Re-Based Bill Det & Rates'!D31 -> Rate Class 10 | D31: 0 | E31: 0 | F31: 0
C32: ='3. Re-Based Bill Det & Rates'!D32 -> Rate Class 11 | D32: 0 | E32: 0 | F32: 0
C33: ='3. Re-Based Bill Det & Rates'!D33 -> Rate Class 12 | D33: 0 | E33: 0 | F33: 0
C34: ='3. Re-Based Bill Det & Rates'!D34 -> Rate Class 13 | D34: 0 | E34: 0 | F34: 0
C35: ='3. Re-Based Bill Det & Rates'!D35 -> Rate Class 14 | D35: 0 | E35: 0 | F35: 0
C36: ='3. Re-Based Bill Det & Rates'!D36 -> Rate Class 15 | D36: 0 | E36: 0 | F36: 0
C37: ='3. Re-Based Bill Det & Rates'!D37 -> Rate Class 16 | D37: 0 | E37: 0 | F37: 0
C38: ='3. Re-Based Bill Det & Rates'!D38 -> Rate Class 17 | D38: 0 | E38: 0 | F38: 0
C39: ='3. Re-Based Bill Det & Rates'!D39 -> Rate Class 18 | D39: 0 | E39: 0 | F39: 0
C40: ='3. Re-Based Bill Det & Rates'!D40 -> Rate Class 19 | D40: 0 | E40: 0 | F40: 0
C41: ='3. Re-Based Bill Det & Rates'!D41 -> Rate Class 20 | D41: 0 | E41: 0 | F41: 0
C42: ='3. Re-Based Bill Det & Rates'!D42 -> Rate Class 21 | D42: 0 | E42: 0 | F42: 0
C43: ='3. Re-Based Bill Det & Rates'!D43 -> Rate Class 22 | D43: 0 | E43: 0 | F43: 0
C44: ='3. Re-Based Bill Det & Rates'!D44 -> Rate Class 23 | D44: 0 | E44: 0 | F44: 0
C45: ='3. Re-Based Bill Det & Rates'!D45 -> Rate Class 24 | D45: 0 | E45: 0 | F45: 0
C46: ='3. Re-Based Bill Det & Rates'!D46 -> Rate Class 25 | D46: 0 | E46: 0 | F46: 0
D47: =SUM(D22:D46) -> 1961747 | E47: =SUM(E22:E46) -> 1
D48: B | F48: D

Sheet 8. Transformer Allowance
A10: The purpose of this sheet is to remove the transformer allowance from volumetric rates. In Cell E47, enter your Transformer Allowance as per your 2012 IRM3 Supplemental Filing Module or your last CoS Decision. Under the column labeled "Transformer Allowance in Rates" select "Yes" if included in that rate class or "No" if not included. Once selected, apply the update button to reveal input cells in which you can enter the number of kW's and the transfromer rate for each rate class.
C20: Rate Class | D20: Transformer Allowance In Rate | E20: Transformer Allowance | F20: Transformer Allowance kW's | G20: Transformer Allowance Rate | H20: Volumetric Distribution Rate | I20: Billed kW's | J20: Adjusted Volumetric Distribution Rate
E21: A | F21: C | G21: E | H21: F | I21: G | J21: I =( F * (G - C) + (F - E) * C) / G
C22: ='3. Re-Based Bill Det & Rates'!D22 -> Residential | D22: No | K22: =(I22*(J22-G22) + (I22-H22)*G22)/J22 ->  | M22: Yes
C23: ='3. Re-Based Bill Det & Rates'!D23 -> General Service Less Than 50 kW | D23: No | M23: No
C24: ='3. Re-Based Bill Det & Rates'!D24 -> General Service 50 to 4,999 kW | D24: Yes | E24: =IF(ISERROR(F24*G24),0,F24*G24) -> 392475.6 | F24: 654126 | G24: 0.6 | H24: ='5. Re-Based Rev From Rates'!K24 -> 4.1887 | I24: ='3. Re-Based Bill Det & Rates'!K24 -> 1818411 | J24: =IF(ISERROR((H24*(I24-F24) + (H24-G24)*F24)/I24),0,(H24*(I24-F24) + (H24-G24)*F24)/I24) -> 3.972865626
C25: ='3. Re-Based Bill Det & Rates'!D25 -> Unmetered Scattered Load | D25: No
C26: ='3. Re-Based Bill Det & Rates'!D26 -> Sentinel Lighting | D26: No
C27: ='3. Re-Based Bill Det & Rates'!D27 -> Street Lighting | D27: No
C28: ='3. Re-Based Bill Det & Rates'!D28 -> Rate Class 7 | E28: 0 | F28: 0 | G28: 0 | H28: 0 | I28: 0 | J28: 0
C29: ='3. Re-Based Bill Det & Rates'!D29 -> Rate Class 8 | E29: 0 | F29: 0 | G29: 0 | H29: 0 | I29: 0 | J29: 0
C30: ='3. Re-Based Bill Det & Rates'!D30 -> Rate Class 9 | E30: 0 | F30: 0 | G30: 0 | H30: 0 | I30: 0 | J30: 0
C31: ='3. Re-Based Bill Det & Rates'!D31 -> Rate Class 10 | E31: 0 | F31: 0 | G31: 0 | H31: 0 | I31: 0 | J31: 0
C32: ='3. Re-Based Bill Det & Rates'!D32 -> Rate Class 11 | E32: 0 | F32: 0 | G32: 0 | H32: 0 | I32: 0 | J32: 0
C33: ='3. Re-Based Bill Det & Rates'!D33 -> Rate Class 12 | E33: 0 | F33: 0 | G33: 0 | H33: 0 | I33: 0 | J33: 0
C34: ='3. Re-Based Bill Det & Rates'!D34 -> Rate Class 13 | E34: 0 | F34: 0 | G34: 0 | H34: 0 | I34: 0 | J34: 0
C35: ='3. Re-Based Bill Det & Rates'!D35 -> Rate Class 14 | E35: 0 | F35: 0 | G35: 0 | H35: 0 | I35: 0 | J35: 0
C36: ='3. Re-Based Bill Det & Rates'!D36 -> Rate Class 15 | E36: 0 | F36: 0 | G36: 0 | H36: 0 | I36: 0 | J36: 0
C37: ='3. Re-Based Bill Det & Rates'!D37 -> Rate Class 16 | E37: 0 | F37: 0 | G37: 0 | H37: 0 | I37: 0 | J37: 0
C38: ='3. Re-Based Bill Det & Rates'!D38 -> Rate Class 17 | E38: 0 | F38: 0 | G38: 0 | H38: 0 | I38: 0 | J38: 0
C39: ='3. Re-Based Bill Det & Rates'!D39 -> Rate Class 18 | E39: 0 | F39: 0 | G39: 0 | H39: 0 | I39: 0 | J39: 0
C40: ='3. Re-Based Bill Det & Rates'!D40 -> Rate Class 19 | E40: 0 | F40: 0 | G40: 0 | H40: 0 | I40: 0 | J40: 0
C41: ='3. Re-Based Bill Det & Rates'!D41 -> Rate Class 20 | E41: 0 | F41: 0 | G41: 0 | H41: 0 | I41: 0 | J41: 0
C42: ='3. Re-Based Bill Det & Rates'!D42 -> Rate Class 21 | E42: 0 | F42: 0 | G42: 0 | H42: 0 | I42: 0 | J42: 0
C43: ='3. Re-Based Bill Det & Rates'!D43 -> Rate Class 22 | E43: 0 | F43: 0 | G43: 0 | H43: 0 | I43: 0 | J43: 0
C44: ='3. Re-Based Bill Det & Rates'!D44 -> Rate Class 23 | E44: 0 | F44: 0 | G44: 0 | H44: 0 | I44: 0 | J44: 0
C45: ='3. Re-Based Bill Det & Rates'!D45 -> Rate Class 24 | E45: 0 | F45: 0 | G45: 0 | H45: 0 | I45: 0 | J45: 0
C46: ='3. Re-Based Bill Det & Rates'!D46 -> Rate Class 25 | E46: 0 | F46: 0 | G46: 0 | H46: 0 | I46: 0 | J46: 0
E47: 392476 | F47: =SUM(F22:F46) -> 654126 | I47: =SUM(I22:I46) -> 1818411
E48: B | F48: D | I48: H
E49: =SUM(E22:E28)-E47 -> -0.4

Sheet 9. R C Ratio Revenue
A10: The purpose of this sheet is to calculate revenue by rate class that inlcudes Revenue Offsets and excludes Transformer Allowance prior to Revenue Cost Ratio Adjustment re-allocation.
C20: Rate Class | E20: Billed Customers or Connections | F20: Billed kWh | G20: Billed kW | I20: Base Service Charge | J20: Base Distribution Volumetric Rate kWh | K20: Base Distribution Volumetric Rate kW | M20: Service Charge | N20: Distribution Volumetric Rate kWh | O20: Distribution Volumetric Rate kW | P20: Revenue Requirement from Rates | R20: Allocated Revenue Offset | S20: Adjusted Revenue
E21: A | F21: B | G21: C | I21: D | J21: E | K21: F | M21: G = A * D *12 | N21: H = B * E | O21: I = C * F | P21: J = G + H + I | R21: K | S21: L = J + K
C22: ='3. Re-Based Bill Det & Rates'!D22 -> Residential | E22: ='3. Re-Based Bill Det & Rates'!I22 -> 46900 | F22: ='3. Re-Based Bill Det & Rates'!J22 -> 462790265 | G22: ='3. Re-Based Bill Det & Rates'!K22 -> 0 | H22: 0 | I22: ='5. Re-Based Rev From Rates'!I22 -> 15.76 | J22: ='5. Re-Based Rev From Rates'!J22 -> 0.0158 | K22: ='5. Re-Based Rev From Rates'!K22 -> 0 | M22: =E22*I22*12 -> 8869728 | N22: =F22*J22 -> 7312086.187 | O22: 0 | P22: =SUM(M22:O22) -> 16181814.19 | R22: ='7. Revenue Offsets Allocation'!F22 -> 0 | S22: =SUM(P22,R22) -> 16181814.19
C23: ='3. Re-Based Bill Det & Rates'!D23 -> General Service Less Than 50 kW | E23: ='3. Re-Based Bill Det & Rates'!I23 -> 4352 | F23: ='3. Re-Based Bill Det & Rates'!J23 -> 122331880 | G23: ='3. Re-Based Bill Det & Rates'!K23 -> 0 | H23: 0 | I23: ='5. Re-Based Rev From Rates'!I23 -> 37.09 | J23: ='5. Re-Based Rev From Rates'!J23 -> 0.0135 | K23: ='5. Re-Based Rev From Rates'!K23 -> 0 | M23: 1936988.16 | N23: 1651480.38 | O23: 0 | P23: 3588468.54 | R23: ='7. Revenue Offsets Allocation'!F23 -> 0 | S23: 3588468.54
C24: ='3. Re-Based Bill Det & Rates'!D24 -> General Service 50 to 4,999 kW | E24: ='3. Re-Based Bill Det & Rates'!I24 -> 848 | F24: ='3. Re-Based Bill Det & Rates'!J24 -> 628090148 | G24: ='3. Re-Based Bill Det & Rates'!K24 -> 1818411 | H24: 0 | I24: ='5. Re-Based Rev From Rates'!I24 -> 177.4 | J24: ='5. Re-Based Rev From Rates'!J24 -> 0 | K24: ='8. Transformer Allowance'!J24 -> 3.972865626 | M24: 1805222.4 | N24: 0 | O24: 7224302.556 | P24: 9029524.956 | R24: ='7. Revenue Offsets Allocation'!F24 -> 0 | S24: 9029524.956
C25: ='3. Re-Based Bill Det & Rates'!D25 -> Unmetered Scattered Load | E25: ='3. Re-Based Bill Det & Rates'!I25 -> 465 | F25: ='3. Re-Based Bill Det & Rates'!J25 -> 2335428 | G25: ='3. Re-Based Bill Det & Rates'!K25 -> 0 | H25: 0 | I25: ='5. Re-Based Rev From Rates'!I25 -> 19.17 | J25: ='5. Re-Based Rev From Rates'!J25 -> 0.0134 | K25: ='5. Re-Based Rev From Rates'!K25 -> 0 | M25: 106968.6 | N25: 31294.7352 | O25: 0 | P25: 138263.3352 | R25: ='7. Revenue Offsets Allocation'!F25 -> 0 | S25: 138263.3352
C26: ='3. Re-Based Bill Det & Rates'!D26 -> Sentinel Lighting | E26: ='3. Re-Based Bill Det & Rates'!I26 -> 560 | F26: ='3. Re-Based Bill Det & Rates'!J26 -> 292817 | G26: ='3. Re-Based Bill Det & Rates'!K26 -> 809 | H26: 0 | I26: ='5. Re-Based Rev From Rates'!I26 -> 9.76 | J26: ='5. Re-Based Rev From Rates'!J26 -> 0 | K26: ='5. Re-Based Rev From Rates'!K26 -> 12.1787 | M26: 65587.2 | N26: 0 | O26: 9852.5683 | P26: 75439.7683 | R26: ='7. Revenue Offsets Allocation'!F26 -> 0 | S26: 75439.7683
C27: ='3. Re-Based Bill Det & Rates'!D27 -> Street Lighting | E27: ='3. Re-Based Bill Det & Rates'!I27 -> 12408 | F27: ='3. Re-Based Bill Det & Rates'!J27 -> 7467591 | G27: ='3. Re-Based Bill Det & Rates'!K27 -> 20107 | H27: 0 | I27: ='5. Re-Based Rev From Rates'!I27 -> 0.94 | J27: ='5. Re-Based Rev From Rates'!J27 -> 0 | K27: ='5. Re-Based Rev From Rates'!K27 -> 3.688 | M27: 139962.24 | N27: 0 | O27: 74154.616 | P27: 214116.856 | R27: ='7. Revenue Offsets Allocation'!F27 -> 0 | S27: 214116.856
C28: ='3. Re-Based Bill Det & Rates'!D28 -> Rate Class 7 | H28: 0
C29: ='3. Re-Based Bill Det & Rates'!D29 -> Rate Class 8 | H29: 0
C30: ='3. Re-Based Bill Det & Rates'!D30 -> Rate Class 9 | H30: 0
C31: ='3. Re-Based Bill Det & Rates'!D31 -> Rate Class 10 | H31: 0
C32: ='3. Re-Based Bill Det & Rates'!D32 -> Rate Class 11 | H32: 0
C33: ='3. Re-Based Bill Det & Rates'!D33 -> Rate Class 12 | H33: 0
C34: ='3. Re-Based Bill Det & Rates'!D34 -> Rate Class 13 | H34: 0
C35: ='3. Re-Based Bill Det & Rates'!D35 -> Rate Class 14 | H35: 0
C36: ='3. Re-Based Bill Det & Rates'!D36 -> Rate Class 15 | H36: 0
C37: ='3. Re-Based Bill Det & Rates'!D37 -> Rate Class 16 | H37: 0
C38: ='3. Re-Based Bill Det & Rates'!D38 -> Rate Class 17 | H38: 0
C39: ='3. Re-Based Bill Det & Rates'!D39 -> Rate Class 18 | H39: 0
C40: ='3. Re-Based Bill Det & Rates'!D40 -> Rate Class 19 | H40: 0
C41: ='3. Re-Based Bill Det & Rates'!D41 -> Rate Class 20 | H41: 0
C42: ='3. Re-Based Bill Det & Rates'!D42 -> Rate Class 21 | H42: 0
C43: ='3. Re-Based Bill Det & Rates'!D43 -> Rate Class 22 | H43: 0
C44: ='3. Re-Based Bill Det & Rates'!D44 -> Rate Class 23 | H44: 0
C45: ='3. Re-Based Bill Det & Rates'!D45 -> Rate Class 24 | H45: 0
C46: ='3. Re-Based Bill Det & Rates'!D46 -> Rate Class 25 | H46: 0
M47: =SUM(M22:M46) -> 12924456.6 | N47: =SUM(N22:N46) -> 8994861.302 | O47: =SUM(O22:O46) -> 7308309.74 | P47: =SUM(P22:P46) -> 29227627.64 | R47: =SUM(R22:R46) -> 0 | S47: =SUM(S22:S46) -> 29227627.64
M48: O | N48: P | O48: Q | P48: R

Sheet 10. Proposed R C Ratio Adj
A14: Proposed Revenue Cost Ratio Adjustment
C20: Rate Class | D20: Adjusted Revenue | E20: Current Revenue Cost Ratio | F20: Re-Allocated Cost | G20: Proposed Revenue Cost Ratio | H20: Final Adjusted Revenue | J20: Dollar Change | K20: Percentage Change
D21: A | E21: B | F21: C = A / B | G21: D | H21: E = C * D | J21: F = E - C | K21: G = (E / C) - 1
C22: ='3. Re-Based Bill Det & Rates'!D22 -> Residential | D22: ='9. R C Ratio Revenue'!S22 -> 16181814.19 | E22: ='6. Decision Cost Revenue Adj'!E22 -> 0.85 | F22: =IF(ISERROR(D22/(E22)),0,D22/(E22)) -> 19037428.46 | G22: ='6. Decision Cost Revenue Adj'!F22 -> 0 | H22: =IF(ISERROR(F22*(G22)),"",F22*(G22)) -> 0 | J22: =H22-D22 -> -16181814.19 | K22: =IF(ISERROR(H22/D22-1),0,H22/D22-1) -> -1
C23: ='3. Re-Based Bill Det & Rates'!D23 -> General Service Less Than 50 kW | D23: ='9. R C Ratio Revenue'!S23 -> 3588468.54 | E23: ='6. Decision Cost Revenue Adj'!E23 -> 1.091 | F23: 3289155.399 | G23: ='6. Decision Cost Revenue Adj'!F23 -> 0 | H23: 0 | J23: =H23-D23 -> -3588468.54 | K23: =IF(ISERROR(H23/D23-1),0,H23/D23-1) -> -1
C24: ='3. Re-Based Bill Det & Rates'!D24 -> General Service 50 to 4,999 kW | D24: ='9. R C Ratio Revenue'!S24 -> 9029524.956 | E24: ='6. Decision Cost Revenue Adj'!E24 -> 1.4701 | F24: 6142116.152 | G24: ='6. Decision Cost Revenue Adj'!F24 -> 1.460152 | H24: 8968423.184 | J24: -61101.77148 | K24: -0.006766886606
C25: ='3. Re-Based Bill Det & Rates'!D25 -> Unmetered Scattered Load | D25: ='9. R C Ratio Revenue'!S25 -> 138263.3352 | E25: ='6. Decision Cost Revenue Adj'!E25 -> 1.015 | F25: 136220.0347 | G25: ='6. Decision Cost Revenue Adj'!F25 -> 0 | H25: 0 | J25: -138263.3352 | K25: -1
C26: ='3. Re-Based Bill Det & Rates'!D26 -> Sentinel Lighting | D26: ='9. R C Ratio Revenue'!S26 -> 75439.7683 | E26: ='6. Decision Cost Revenue Adj'!E26 -> 0.541 | F26: 139445.0431 | G26: ='6. Decision Cost Revenue Adj'!F26 -> 0.7 | H26: 97611.53015 | J26: 22171.76185 | K26: 0.2939001848
C27: ='3. Re-Based Bill Det & Rates'!D27 -> Street Lighting | D27: ='9. R C Ratio Revenue'!S27 -> 214116.856 | E27: ='6. Decision Cost Revenue Adj'!E27 -> 0.589 | F27: 363526.0713 | G27: ='6. Decision Cost Revenue Adj'!F27 -> 0.7 | H27: 254468.2499 | J27: 40351.39392 | K27: 0.1884550085
C28: ='3. Re-Based Bill Det & Rates'!D28 -> Rate Class 7 | D28: 0 | E28: 0 | F28: 0 | G28: 0 | H28: 0 | J28: 0 | K28: 0
C29: ='3. Re-Based Bill Det & Rates'!D29 -> Rate Class 8 | D29: 0 | E29: 0 | F29: 0 | G29: 0 | H29: 0 | J29: 0 | K29: 0
C30: ='3. Re-Based Bill Det & Rates'!D30 -> Rate Class 9 | D30: 0 | E30: 0 | F30: 0 | G30: 0 | H30: 0 | J30: 0 | K30: 0
C31: ='3. Re-Based Bill Det & Rates'!D31 -> Rate Class 10 | D31: 0 | E31: 0 | F31: 0 | G31: 0 | H31: 0 | J31: 0 | K31: 0
C32: ='3. Re-Based Bill Det & Rates'!D32 -> Rate Class 11 | D32: 0 | E32: 0 | F32: 0 | G32: 0 | H32: 0 | J32: 0 | K32: 0
C33: ='3. Re-Based Bill Det & Rates'!D33 -> Rate Class 12 | D33: 0 | E33: 0 | F33: 0 | G33: 0 | H33: 0 | J33: 0 | K33: 0
C34: ='3. Re-Based Bill Det & Rates'!D34 -> Rate Class 13 | D34: 0 | E34: 0 | F34: 0 | G34: 0 | H34: 0 | J34: 0 | K34: 0
C35: ='3. Re-Based Bill Det & Rates'!D35 -> Rate Class 14 | D35: 0 | E35: 0 | F35: 0 | G35: 0 | H35: 0 | J35: 0 | K35: 0
C36: ='3. Re-Based Bill Det & Rates'!D36 -> Rate Class 15 | D36: 0 | E36: 0 | F36: 0 | G36: 0 | H36: 0 | J36: 0 | K36: 0
C37: ='3. Re-Based Bill Det & Rates'!D37 -> Rate Class 16 | D37: 0 | E37: 0 | F37: 0 | G37: 0 | H37: 0 | J37: 0 | K37: 0
C38: ='3. Re-Based Bill Det & Rates'!D38 -> Rate Class 17 | D38: 0 | E38: 0 | F38: 0 | G38: 0 | H38: 0 | J38: 0 | K38: 0
C39: ='3. Re-Based Bill Det & Rates'!D39 -> Rate Class 18 | D39: 0 | E39: 0 | F39: 0 | G39: 0 | H39: 0 | J39: 0 | K39: 0
C40: ='3. Re-Based Bill Det & Rates'!D40 -> Rate Class 19 | D40: 0 | E40: 0 | F40: 0 | G40: 0 | H40: 0 | J40: 0 | K40: 0
C41: ='3. Re-Based Bill Det & Rates'!D41 -> Rate Class 20 | D41: 0 | E41: 0 | F41: 0 | G41: 0 | H41: 0 | J41: 0 | K41: 0
C42: ='3. Re-Based Bill Det & Rates'!D42 -> Rate Class 21 | D42: 0 | E42: 0 | F42: 0 | G42: 0 | H42: 0 | J42: 0 | K42: 0
C43: ='3. Re-Based Bill Det & Rates'!D43 -> Rate Class 22 | D43: 0 | E43: 0 | F43: 0 | G43: 0 | H43: 0 | J43: 0 | K43: 0
C44: ='3. Re-Based Bill Det & Rates'!D44 -> Rate Class 23 | D44: 0 | E44: 0 | F44: 0 | G44: 0 | H44: 0 | J44: 0 | K44: 0
C45: ='3. Re-Based Bill Det & Rates'!D45 -> Rate Class 24 | D45: 0 | E45: 0 | F45: 0 | G45: 0 | H45: 0 | J45: 0 | K45: 0
C46: ='3. Re-Based Bill Det & Rates'!D46 -> Rate Class 25 | D46: 0 | E46: 0 | F46: 0 | G46: 0 | H46: 0 | J46: 0 | K46: 0
D47: =SUM(D22:D46) -> 29227627.64 | F47: =SUM(F22:F46) -> 29107891.16 | H47: =SUM(H22:H46) -> 9320502.964 | J47: =SUM(J22:J46) -> -19907124.68 | K47: -0.6811064148
G49: Out of Balance | H49: =D47-H47 -> 19907124.68
G51: Final ? | H51: No

Sheet 11. Proposed Revenue
A14: Proposed Revenue from Revenue Cost Ratio Adjustment
C20: Rate Class | D20: Adjusted Revenue By Revenue Cost Ratio | E20: Allocated Re-Based Revenue Offsets | F20: Revenue Requirement from Rates Before Transformer Allowance | H20: Re-based Transformer Allowance | J20: Revenue Requirement from Rates
D21: A | E21: B | F21: C = A - B | H21: D | J21: E = C + D
C22: ='3. Re-Based Bill Det & Rates'!D22 -> Residential | D22: =IF(('10. Proposed R C Ratio Adj'!H22=""),0,'10. Proposed R C Ratio Adj'!H22) -> 0 | E22: ='7. Revenue Offsets Allocation'!F22 -> 0 | F22: =D22-E22 -> 0 | H22: ='8. Transformer Allowance'!E22 -> 0 | J22: =F22+H22 -> 0
C23: ='3. Re-Based Bill Det & Rates'!D23 -> General Service Less Than 50 kW | D23: =IF(('10. Proposed R C Ratio Adj'!H23=""),0,'10. Proposed R C Ratio Adj'!H23) -> 0 | E23: ='7. Revenue Offsets Allocation'!F23 -> 0 | F23: 0 | H23: ='8. Transformer Allowance'!E23 -> 0 | J23: =F23+H23 -> 0
C24: ='3. Re-Based Bill Det & Rates'!D24 -> General Service 50 to 4,999 kW | D24: =IF(('10. Proposed R C Ratio Adj'!H24=""),0,'10. Proposed R C Ratio Adj'!H24) -> 8968423.184 | E24: ='7. Revenue Offsets Allocation'!F24 -> 0 | F24: 8968423.184 | H24: ='8. Transformer Allowance'!E24 -> 392475.6 | J24: 9360898.784
C25: ='3. Re-Based Bill Det & Rates'!D25 -> Unmetered Scattered Load | D25: =IF(('10. Proposed R C Ratio Adj'!H25=""),0,'10. Proposed R C Ratio Adj'!H25) -> 0 | E25: ='7. Revenue Offsets Allocation'!F25 -> 0 | F25: 0 | H25: ='8. Transformer Allowance'!E25 -> 0 | J25: 0
C26: ='3. Re-Based Bill Det & Rates'!D26 -> Sentinel Lighting | D26: =IF(('10. Proposed R C Ratio Adj'!H26=""),0,'10. Proposed R C Ratio Adj'!H26) -> 97611.53015 | E26: ='7. Revenue Offsets Allocation'!F26 -> 0 | F26: 97611.53015 | H26: ='8. Transformer Allowance'!E26 -> 0 | J26: 97611.53015
C27: ='3. Re-Based Bill Det & Rates'!D27 -> Street Lighting | D27: =IF(('10. Proposed R C Ratio Adj'!H27=""),0,'10. Proposed R C Ratio Adj'!H27) -> 254468.2499 | E27: ='7. Revenue Offsets Allocation'!F27 -> 0 | F27: 254468.2499 | H27: ='8. Transformer Allowance'!E27 -> 0 | J27: 254468.2499
C28: ='3. Re-Based Bill Det & Rates'!D28 -> Rate Class 7 | F28: 0 | J28: 0
C29: ='3. Re-Based Bill Det & Rates'!D29 -> Rate Class 8 | F29: 0 | J29: 0
C30: ='3. Re-Based Bill Det & Rates'!D30 -> Rate Class 9 | F30: 0 | J30: 0
C31: ='3. Re-Based Bill Det & Rates'!D31 -> Rate Class 10 | F31: 0 | J31: 0
C32: ='3. Re-Based Bill Det & Rates'!D32 -> Rate Class 11 | F32: 0 | J32: 0
C33: ='3. Re-Based Bill Det & Rates'!D33 -> Rate Class 12 | F33: 0 | J33: 0
C34: ='3. Re-Based Bill Det & Rates'!D34 -> Rate Class 13 | F34: 0 | J34: 0
C35: ='3. Re-Based Bill Det & Rates'!D35 -> Rate Class 14 | F35: 0 | J35: 0
C36: ='3. Re-Based Bill Det & Rates'!D36 -> Rate Class 15 | F36: 0 | J36: 0
C37: ='3. Re-Based Bill Det & Rates'!D37 -> Rate Class 16 | F37: 0 | J37: 0
C38: ='3. Re-Based Bill Det & Rates'!D38 -> Rate Class 17 | F38: 0 | J38: 0
C39: ='3. Re-Based Bill Det & Rates'!D39 -> Rate Class 18 | F39: 0 | J39: 0
C40: ='3. Re-Based Bill Det & Rates'!D40 -> Rate Class 19 | F40: 0 | J40: 0
C41: ='3. Re-Based Bill Det & Rates'!D41 -> Rate Class 20 | F41: 0 | J41: 0
C42: ='3. Re-Based Bill Det & Rates'!D42 -> Rate Class 21 | F42: 0 | J42: 0
C43: ='3. Re-Based Bill Det & Rates'!D43 -> Rate Class 22 | F43: 0 | J43: 0
C44: ='3. Re-Based Bill Det & Rates'!D44 -> Rate Class 23 | F44: 0 | J44: 0
C45: ='3. Re-Based Bill Det & Rates'!D45 -> Rate Class 24 | F45: 0 | J45: 0
C46: ='3. Re-Based Bill Det & Rates'!D46 -> Rate Class 25 | F46: 0 | J46: 0
D47: =SUM(D22:D46) -> 9320502.964 | E47: =SUM(E22:E46) -> 0 | F47: =SUM(F22:F46) -> 9320502.964 | H47: =SUM(H22:H46) -> 392475.6 | J47: =SUM(J22:J46) -> 9712978.564

Sheet 12. Proposed F V Rev Alloc
A13: Proposed fixed and variable revenue allocation
C20: Rate Class | D20: Revenue Requirement from Rates | F20: Service Charge % Revenue | G20: Distribution Volumetric Rate % Revenue kWh | H20: Distribution Volumetric Rate % Revenue kW | J20: Service Charge Revenue | K20: Distribution Volumetric Rate Revenue kWh | L20: Distribution Volumetric Rate Revenue kW | M20: Revenue Requirement from Rates by Rate Class
D21: A | F21: B | G21: C | H21: D | J21: E = A * B | K21: F = A * C | L21: G = A * D | M21: H = E + F + G
C22: ='3. Re-Based Bill Det & Rates'!D22 -> Residential | D22: ='11. Proposed Revenue'!J22 -> 0 | F22: ='5. Re-Based Rev From Rates'!R22 -> 0.5481293937 | G22: ='5. Re-Based Rev From Rates'!S22 -> 0.4518706063 | H22: ='5. Re-Based Rev From Rates'!T22 -> 0 | J22: =IF(ISERROR($D22*F22),0,$D22*F22) -> 0 | K22: =IF(ISERROR($D22*G22),0,$D22*G22) -> 0 | L22: =IF(ISERROR($D22*H22),0,$D22*H22) -> 0 | M22: =SUM(J22:L22) -> 0
C23: ='3. Re-Based Bill Det & Rates'!D23 -> General Service Less Than 50 kW | D23: ='11. Proposed Revenue'!J23 -> 0 | F23: ='5. Re-Based Rev From Rates'!R23 -> 0.5397812851 | G23: ='5. Re-Based Rev From Rates'!S23 -> 0.4602187149 | H23: ='5. Re-Based Rev From Rates'!T23 -> 0 | J23: 0 | K23: 0 | L23: 0 | M23: 0
C24: ='3. Re-Based Bill Det & Rates'!D24 -> General Service 50 to 4,999 kW | D24: ='11. Proposed Revenue'!J24 -> 9360898.784 | F24: ='5. Re-Based Rev From Rates'!R24 -> 0.1915965075 | G24: ='5. Re-Based Rev From Rates'!S24 -> 0 | H24: ='5. Re-Based Rev From Rates'!T24 -> 0.8084034925 | J24: 1793515.514 | K24: 0 | L24: 7567383.27 | M24: 9360898.784
C25: ='3. Re-Based Bill Det & Rates'!D25 -> Unmetered Scattered Load | D25: ='11. Proposed Revenue'!J25 -> 0 | F25: ='5. Re-Based Rev From Rates'!R25 -> 0.7736584673 | G25: ='5. Re-Based Rev From Rates'!S25 -> 0.2263415327 | H25: ='5. Re-Based Rev From Rates'!T25 -> 0 | J25: 0 | K25: 0 | L25: 0 | M25: 0
C26: ='3. Re-Based Bill Det & Rates'!D26 -> Sentinel Lighting | D26: ='11. Proposed Revenue'!J26 -> 97611.53015 | F26: ='5. Re-Based Rev From Rates'!R26 -> 0.8693982163 | G26: ='5. Re-Based Rev From Rates'!S26 -> 0 | H26: ='5. Re-Based Rev From Rates'!T26 -> 0.1306017837 | J26: 84863.2902 | K26: 0 | L26: 12748.23994 | M26: 97611.53015
C27: ='3. Re-Based Bill Det & Rates'!D27 -> Street Lighting | D27: ='11. Proposed Revenue'!J27 -> 254468.2499 | F27: ='5. Re-Based Rev From Rates'!R27 -> 0.6536722172 | G27: ='5. Re-Based Rev From Rates'!S27 -> 0 | H27: ='5. Re-Based Rev From Rates'!T27 -> 0.3463277828 | J27: 166338.8251 | K27: 0 | L27: 88129.42479 | M27: 254468.2499
C28: ='3. Re-Based Bill Det & Rates'!D28 -> Rate Class 7 | J28: 0 | K28: 0 | L28: 0 | M28: 0
C29: ='3. Re-Based Bill Det & Rates'!D29 -> Rate Class 8 | J29: 0 | K29: 0 | L29: 0 | M29: 0
C30: ='3. Re-Based Bill Det & Rates'!D30 -> Rate Class 9 | J30: 0 | K30: 0 | L30: 0 | M30: 0
C31: ='3. Re-Based Bill Det & Rates'!D31 -> Rate Class 10 | J31: 0 | K31: 0 | L31: 0 | M31: 0
C32: ='3. Re-Based Bill Det & Rates'!D32 -> Rate Class 11 | J32: 0 | K32: 0 | L32: 0 | M32: 0
C33: ='3. Re-Based Bill Det & Rates'!D33 -> Rate Class 12 | J33: 0 | K33: 0 | L33: 0 | M33: 0
C34: ='3. Re-Based Bill Det & Rates'!D34 -> Rate Class 13 | J34: 0 | K34: 0 | L34: 0 | M34: 0
C35: ='3. Re-Based Bill Det & Rates'!D35 -> Rate Class 14 | J35: 0 | K35: 0 | L35: 0 | M35: 0
C36: ='3. Re-Based Bill Det & Rates'!D36 -> Rate Class 15 | J36: 0 | K36: 0 | L36: 0 | M36: 0
C37: ='3. Re-Based Bill Det & Rates'!D37 -> Rate Class 16 | J37: 0 | K37: 0 | L37: 0 | M37: 0
C38: ='3. Re-Based Bill Det & Rates'!D38 -> Rate Class 17 | J38: 0 | K38: 0 | L38: 0 | M38: 0
C39: ='3. Re-Based Bill Det & Rates'!D39 -> Rate Class 18 | J39: 0 | K39: 0 | L39: 0 | M39: 0
C40: ='3. Re-Based Bill Det & Rates'!D40 -> Rate Class 19 | J40: 0 | K40: 0 | L40: 0 | M40: 0
C41: ='3. Re-Based Bill Det & Rates'!D41 -> Rate Class 20 | J41: 0 | K41: 0 | L41: 0 | M41: 0
C42: ='3. Re-Based Bill Det & Rates'!D42 -> Rate Class 21 | J42: 0 | K42: 0 | L42: 0 | M42: 0
C43: ='3. Re-Based Bill Det & Rates'!D43 -> Rate Class 22 | J43: 0 | K43: 0 | L43: 0 | M43: 0
C44: ='3. Re-Based Bill Det & Rates'!D44 -> Rate Class 23 | J44: 0 | K44: 0 | L44: 0 | M44: 0
C45: ='3. Re-Based Bill Det & Rates'!D45 -> Rate Class 24 | J45: 0 | K45: 0 | L45: 0 | M45: 0
C46: ='3. Re-Based Bill Det & Rates'!D46 -> Rate Class 25 | J46: 0 | K46: 0 | L46: 0 | M46: 0
D47: =SUM(D22:D46) -> 9712978.564 | J47: =SUM(J22:J46) -> 2044717.629 | K47: =SUM(K22:K46) -> 0 | L47: =SUM(L22:L46) -> 7668260.935 | M47: =SUM(M22:M46) -> 9712978.564

Sheet 13. Proposed F V Rates
A11: Proposed fixed and variable rates
C20: Rate Class | E20: Service Charge Revenue | F20: Distribution Volumetric Rate Revenue kWh | G20: Distribution Volumetric Rate Revenue kW | I20: Re-based Billed Customers or Connections | J20: Re-based Billed kWh | K20: Re-based Billed kW | M20: Proposed Base Service Charge | N20: Proposed Base Distribution Volumetric Rate kWh | O20: Proposed Base Distribution Volumetric Rate kW
E21: A | F21: B | G21: C | I21: D | J21: E | K21: F | M21: G = A / D / 12 | N21: H = B / E | O21: I = C / F
C22: ='3. Re-Based Bill Det & Rates'!D22 -> Residential | E22: ='12. Proposed F V Rev Alloc'!J22 -> 0 | F22: ='12. Proposed F V Rev Alloc'!K22 -> 0 | G22: ='12. Proposed F V Rev Alloc'!L22 -> 0 | I22: ='3. Re-Based Bill Det & Rates'!I22 -> 46900 | J22: ='3. Re-Based Bill Det & Rates'!J22 -> 462790265 | K22: ='3. Re-Based Bill Det & Rates'!K22 -> 0 | M22: =IF('6. Decision Cost Revenue Adj'!D22="No Change",'5. Re-Based Rev From Rates'!I22,IF(ISERROR(E22/I22/12),0,E22/I22/12)) -> 15.76 | N22: =IF('6. Decision Cost Revenue Adj'!D22="No Change",'5. Re-Based Rev From Rates'!J22,IF(ISERROR(F22/J22),0,F22/J22)) -> 0.0158 | O22: =IF('6. Decision Cost Revenue Adj'!D22="No Change",'5. Re-Based Rev From Rates'!K22,IF(ISERROR(G22/K22),0,G22/K22)) -> 0
C23: ='3. Re-Based Bill Det & Rates'!D23 -> General Service Less Than 50 kW | E23: ='12. Proposed F V Rev Alloc'!J23 -> 0 | F23: ='12. Proposed F V Rev Alloc'!K23 -> 0 | G23: ='12. Proposed F V Rev Alloc'!L23 -> 0 | I23: ='3. Re-Based Bill Det & Rates'!I23 -> 4352 | J23: ='3. Re-Based Bill Det & Rates'!J23 -> 122331880 | K23: ='3. Re-Based Bill Det & Rates'!K23 -> 0 | M23: =IF('6. Decision Cost Revenue Adj'!D23="No Change",'5. Re-Based Rev From Rates'!I23,IF(ISERROR(E23/I23/12),0,E23/I23/12)) -> 37.09 | N23: =IF('6. Decision Cost Revenue Adj'!D23="No Change",'5. Re-Based Rev From Rates'!J23,IF(ISERROR(F23/J23),0,F23/J23)) -> 0.0135 | O23: =IF('6. Decision Cost Revenue Adj'!D23="No Change",'5. Re-Based Rev From Rates'!K23,IF(ISERROR(G23/K23),0,G23/K23)) -> 0
C24: ='3. Re-Based Bill Det & Rates'!D24 -> General Service 50 to 4,999 kW | E24: ='12. Proposed F V Rev Alloc'!J24 -> 1793515.514 | F24: ='12. Proposed F V Rev Alloc'!K24 -> 0 | G24: ='12. Proposed F V Rev Alloc'!L24 -> 7567383.27 | I24: ='3. Re-Based Bill Det & Rates'!I24 -> 848 | J24: ='3. Re-Based Bill Det & Rates'!J24 -> 628090148 | K24: ='3. Re-Based Bill Det & Rates'!K24 -> 1818411 | M24: =IF('6. Decision Cost Revenue Adj'!D24="No Change",'5. Re-Based Rev From Rates'!I24,IF(ISERROR(E24/I24/12),0,E24/I24/12)) -> 176.2495592 | N24: =IF('6. Decision Cost Revenue Adj'!D24="No Change",'5. Re-Based Rev From Rates'!J24,IF(ISERROR(F24/J24),0,F24/J24)) -> 0 | O24: =IF('6. Decision Cost Revenue Adj'!D24="No Change",'5. Re-Based Rev From Rates'!K24,IF(ISERROR(G24/K24),0,G24/K24)) -> 4.161536237
C25: ='3. Re-Based Bill Det & Rates'!D25 -> Unmetered Scattered Load | E25: ='12. Proposed F V Rev Alloc'!J25 -> 0 | F25: ='12. Proposed F V Rev Alloc'!K25 -> 0 | G25: ='12. Proposed F V Rev Alloc'!L25 -> 0 | I25: ='3. Re-Based Bill Det & Rates'!I25 -> 465 | J25: ='3. Re-Based Bill Det & Rates'!J25 -> 2335428 | K25: ='3. Re-Based Bill Det & Rates'!K25 -> 0 | M25: =IF('6. Decision Cost Revenue Adj'!D25="No Change",'5. Re-Based Rev From Rates'!I25,IF(ISERROR(E25/I25/12),0,E25/I25/12)) -> 19.17 | N25: =IF('6. Decision Cost Revenue Adj'!D25="No Change",'5. Re-Based Rev From Rates'!J25,IF(ISERROR(F25/J25),0,F25/J25)) -> 0.0134 | O25: =IF('6. Decision Cost Revenue Adj'!D25="No Change",'5. Re-Based Rev From Rates'!K25,IF(ISERROR(G25/K25),0,G25/K25)) -> 0
C26: ='3. Re-Based Bill Det & Rates'!D26 -> Sentinel Lighting | E26: ='12. Proposed F V Rev Alloc'!J26 -> 84863.2902 | F26: ='12. Proposed F V Rev Alloc'!K26 -> 0 | G26: ='12. Proposed F V Rev Alloc'!L26 -> 12748.23994 | I26: ='3. Re-Based Bill Det & Rates'!I26 -> 560 | J26: ='3. Re-Based Bill Det & Rates'!J26 -> 292817 | K26: ='3. Re-Based Bill Det & Rates'!K26 -> 809 | M26: =IF('6. Decision Cost Revenue Adj'!D26="No Change",'5. Re-Based Rev From Rates'!I26,IF(ISERROR(E26/I26/12),0,E26/I26/12)) -> 12.6284658 | N26: =IF('6. Decision Cost Revenue Adj'!D26="No Change",'5. Re-Based Rev From Rates'!J26,IF(ISERROR(F26/J26),0,F26/J26)) -> 0 | O26: =IF('6. Decision Cost Revenue Adj'!D26="No Change",'5. Re-Based Rev From Rates'!K26,IF(ISERROR(G26/K26),0,G26/K26)) -> 15.75802218
C27: ='3. Re-Based Bill Det & Rates'!D27 -> Street Lighting | E27: ='12. Proposed F V Rev Alloc'!J27 -> 166338.8251 | F27: ='12. Proposed F V Rev Alloc'!K27 -> 0 | G27: ='12. Proposed F V Rev Alloc'!L27 -> 88129.42479 | I27: ='3. Re-Based Bill Det & Rates'!I27 -> 12408 | J27: ='3. Re-Based Bill Det & Rates'!J27 -> 7467591 | K27: ='3. Re-Based Bill Det & Rates'!K27 -> 20107 | M27: =IF('6. Decision Cost Revenue Adj'!D27="No Change",'5. Re-Based Rev From Rates'!I27,IF(ISERROR(E27/I27/12),0,E27/I27/12)) -> 1.117147708 | N27: =IF('6. Decision Cost Revenue Adj'!D27="No Change",'5. Re-Based Rev From Rates'!J27,IF(ISERROR(F27/J27),0,F27/J27)) -> 0 | O27: =IF('6. Decision Cost Revenue Adj'!D27="No Change",'5. Re-Based Rev From Rates'!K27,IF(ISERROR(G27/K27),0,G27/K27)) -> 4.383022071
C28: ='3. Re-Based Bill Det & Rates'!D28 -> Rate Class 7 | M28: =IF('6. Decision Cost Revenue Adj'!D28="No Change",'5. Re-Based Rev From Rates'!I28,IF(ISERROR(E28/I28/12),0,E28/I28/12)) -> 0 | N28: =IF('6. Decision Cost Revenue Adj'!D28="No Change",'5. Re-Based Rev From Rates'!J28,IF(ISERROR(F28/J28),0,F28/J28)) -> 0 | O28: =IF('6. Decision Cost Revenue Adj'!D28="No Change",'5. Re-Based Rev From Rates'!K28,IF(ISERROR(G28/K28),0,G28/K28)) -> 0
C29: ='3. Re-Based Bill Det & Rates'!D29 -> Rate Class 8 | M29: =IF('6. Decision Cost Revenue Adj'!D29="No Change",'5. Re-Based Rev From Rates'!I29,IF(ISERROR(E29/I29/12),0,E29/I29/12)) -> 0 | N29: =IF('6. Decision Cost Revenue Adj'!D29="No Change",'5. Re-Based Rev From Rates'!J29,IF(ISERROR(F29/J29),0,F29/J29)) -> 0 | O29: =IF('6. Decision Cost Revenue Adj'!D29="No Change",'5. Re-Based Rev From Rates'!K29,IF(ISERROR(G29/K29),0,G29/K29)) -> 0
C30: ='3. Re-Based Bill Det & Rates'!D30 -> Rate Class 9 | M30: =IF('6. Decision Cost Revenue Adj'!D30="No Change",'5. Re-Based Rev From Rates'!I30,IF(ISERROR(E30/I30/12),0,E30/I30/12)) -> 0 | N30: =IF('6. Decision Cost Revenue Adj'!D30="No Change",'5. Re-Based Rev From Rates'!J30,IF(ISERROR(F30/J30),0,F30/J30)) -> 0 | O30: =IF('6. Decision Cost Revenue Adj'!D30="No Change",'5. Re-Based Rev From Rates'!K30,IF(ISERROR(G30/K30),0,G30/K30)) -> 0
C31: ='3. Re-Based Bill Det & Rates'!D31 -> Rate Class 10 | M31: =IF('6. Decision Cost Revenue Adj'!D31="No Change",'5. Re-Based Rev From Rates'!I31,IF(ISERROR(E31/I31/12),0,E31/I31/12)) -> 0 | N31: =IF('6. Decision Cost Revenue Adj'!D31="No Change",'5. Re-Based Rev From Rates'!J31,IF(ISERROR(F31/J31),0,F31/J31)) -> 0 | O31: =IF('6. Decision Cost Revenue Adj'!D31="No Change",'5. Re-Based Rev From Rates'!K31,IF(ISERROR(G31/K31),0,G31/K31)) -> 0
C32: ='3. Re-Based Bill Det & Rates'!D32 -> Rate Class 11 | M32: =IF('6. Decision Cost Revenue Adj'!D32="No Change",'5. Re-Based Rev From Rates'!I32,IF(ISERROR(E32/I32/12),0,E32/I32/12)) -> 0 | N32: =IF('6. Decision Cost Revenue Adj'!D32="No Change",'5. Re-Based Rev From Rates'!J32,IF(ISERROR(F32/J32),0,F32/J32)) -> 0 | O32: =IF('6. Decision Cost Revenue Adj'!D32="No Change",'5. Re-Based Rev From Rates'!K32,IF(ISERROR(G32/K32),0,G32/K32)) -> 0
C33: ='3. Re-Based Bill Det & Rates'!D33 -> Rate Class 12 | M33: =IF('6. Decision Cost Revenue Adj'!D33="No Change",'5. Re-Based Rev From Rates'!I33,IF(ISERROR(E33/I33/12),0,E33/I33/12)) -> 0 | N33: =IF('6. Decision Cost Revenue Adj'!D33="No Change",'5. Re-Based Rev From Rates'!J33,IF(ISERROR(F33/J33),0,F33/J33)) -> 0 | O33: =IF('6. Decision Cost Revenue Adj'!D33="No Change",'5. Re-Based Rev From Rates'!K33,IF(ISERROR(G33/K33),0,G33/K33)) -> 0
C34: ='3. Re-Based Bill Det & Rates'!D34 -> Rate Class 13 | M34: =IF('6. Decision Cost Revenue Adj'!D34="No Change",'5. Re-Based Rev From Rates'!I34,IF(ISERROR(E34/I34/12),0,E34/I34/12)) -> 0 | N34: =IF('6. Decision Cost Revenue Adj'!D34="No Change",'5. Re-Based Rev From Rates'!J34,IF(ISERROR(F34/J34),0,F34/J34)) -> 0 | O34: =IF('6. Decision Cost Revenue Adj'!D34="No Change",'5. Re-Based Rev From Rates'!K34,IF(ISERROR(G34/K34),0,G34/K34)) -> 0
C35: ='3. Re-Based Bill Det & Rates'!D35 -> Rate Class 14 | M35: =IF('6. Decision Cost Revenue Adj'!D35="No Change",'5. Re-Based Rev From Rates'!I35,IF(ISERROR(E35/I35/12),0,E35/I35/12)) -> 0 | N35: =IF('6. Decision Cost Revenue Adj'!D35="No Change",'5. Re-Based Rev From Rates'!J35,IF(ISERROR(F35/J35),0,F35/J35)) -> 0 | O35: =IF('6. Decision Cost Revenue Adj'!D35="No Change",'5. Re-Based Rev From Rates'!K35,IF(ISERROR(G35/K35),0,G35/K35)) -> 0
C36: ='3. Re-Based Bill Det & Rates'!D36 -> Rate Class 15 | M36: =IF('6. Decision Cost Revenue Adj'!D36="No Change",'5. Re-Based Rev From Rates'!I36,IF(ISERROR(E36/I36/12),0,E36/I36/12)) -> 0 | N36: =IF('6. Decision Cost Revenue Adj'!D36="No Change",'5. Re-Based Rev From Rates'!J36,IF(ISERROR(F36/J36),0,F36/J36)) -> 0 | O36: =IF('6. Decision Cost Revenue Adj'!D36="No Change",'5. Re-Based Rev From Rates'!K36,IF(ISERROR(G36/K36),0,G36/K36)) -> 0
C37: ='3. Re-Based Bill Det & Rates'!D37 -> Rate Class 16 | M37: =IF('6. Decision Cost Revenue Adj'!D37="No Change",'5. Re-Based Rev From Rates'!I37,IF(ISERROR(E37/I37/12),0,E37/I37/12)) -> 0 | N37: =IF('6. Decision Cost Revenue Adj'!D37="No Change",'5. Re-Based Rev From Rates'!J37,IF(ISERROR(F37/J37),0,F37/J37)) -> 0 | O37: =IF('6. Decision Cost Revenue Adj'!D37="No Change",'5. Re-Based Rev From Rates'!K37,IF(ISERROR(G37/K37),0,G37/K37)) -> 0
C38: ='3. Re-Based Bill Det & Rates'!D38 -> Rate Class 17 | M38: =IF('6. Decision Cost Revenue Adj'!D38="No Change",'5. Re-Based Rev From Rates'!I38,IF(ISERROR(E38/I38/12),0,E38/I38/12)) -> 0 | N38: =IF('6. Decision Cost Revenue Adj'!D38="No Change",'5. Re-Based Rev From Rates'!J38,IF(ISERROR(F38/J38),0,F38/J38)) -> 0 | O38: =IF('6. Decision Cost Revenue Adj'!D38="No Change",'5. Re-Based Rev From Rates'!K38,IF(ISERROR(G38/K38),0,G38/K38)) -> 0
C39: ='3. Re-Based Bill Det & Rates'!D39 -> Rate Class 18 | M39: =IF('6. Decision Cost Revenue Adj'!D39="No Change",'5. Re-Based Rev From Rates'!I39,IF(ISERROR(E39/I39/12),0,E39/I39/12)) -> 0 | N39: =IF('6. Decision Cost Revenue Adj'!D39="No Change",'5. Re-Based Rev From Rates'!J39,IF(ISERROR(F39/J39),0,F39/J39)) -> 0 | O39: =IF('6. Decision Cost Revenue Adj'!D39="No Change",'5. Re-Based Rev From Rates'!K39,IF(ISERROR(G39/K39),0,G39/K39)) -> 0
C40: ='3. Re-Based Bill Det & Rates'!D40 -> Rate Class 19 | M40: =IF('6. Decision Cost Revenue Adj'!D40="No Change",'5. Re-Based Rev From Rates'!I40,IF(ISERROR(E40/I40/12),0,E40/I40/12)) -> 0 | N40: =IF('6. Decision Cost Revenue Adj'!D40="No Change",'5. Re-Based Rev From Rates'!J40,IF(ISERROR(F40/J40),0,F40/J40)) -> 0 | O40: =IF('6. Decision Cost Revenue Adj'!D40="No Change",'5. Re-Based Rev From Rates'!K40,IF(ISERROR(G40/K40),0,G40/K40)) -> 0
C41: ='3. Re-Based Bill Det & Rates'!D41 -> Rate Class 20 | M41: =IF('6. Decision Cost Revenue Adj'!D41="No Change",'5. Re-Based Rev From Rates'!I41,IF(ISERROR(E41/I41/12),0,E41/I41/12)) -> 0 | N41: =IF('6. Decision Cost Revenue Adj'!D41="No Change",'5. Re-Based Rev From Rates'!J41,IF(ISERROR(F41/J41),0,F41/J41)) -> 0 | O41: =IF('6. Decision Cost Revenue Adj'!D41="No Change",'5. Re-Based Rev From Rates'!K41,IF(ISERROR(G41/K41),0,G41/K41)) -> 0
C42: ='3. Re-Based Bill Det & Rates'!D42 -> Rate Class 21 | M42: =IF('6. Decision Cost Revenue Adj'!D42="No Change",'5. Re-Based Rev From Rates'!I42,IF(ISERROR(E42/I42/12),0,E42/I42/12)) -> 0 | N42: =IF('6. Decision Cost Revenue Adj'!D42="No Change",'5. Re-Based Rev From Rates'!J42,IF(ISERROR(F42/J42),0,F42/J42)) -> 0 | O42: =IF('6. Decision Cost Revenue Adj'!D42="No Change",'5. Re-Based Rev From Rates'!K42,IF(ISERROR(G42/K42),0,G42/K42)) -> 0
C43: ='3. Re-Based Bill Det & Rates'!D43 -> Rate Class 22 | M43: =IF('6. Decision Cost Revenue Adj'!D43="No Change",'5. Re-Based Rev From Rates'!I43,IF(ISERROR(E43/I43/12),0,E43/I43/12)) -> 0 | N43: =IF('6. Decision Cost Revenue Adj'!D43="No Change",'5. Re-Based Rev From Rates'!J43,IF(ISERROR(F43/J43),0,F43/J43)) -> 0 | O43: =IF('6. Decision Cost Revenue Adj'!D43="No Change",'5. Re-Based Rev From Rates'!K43,IF(ISERROR(G43/K43),0,G43/K43)) -> 0
C44: ='3. Re-Based Bill Det & Rates'!D44 -> Rate Class 23 | M44: =IF('6. Decision Cost Revenue Adj'!D44="No Change",'5. Re-Based Rev From Rates'!I44,IF(ISERROR(E44/I44/12),0,E44/I44/12)) -> 0 | N44: =IF('6. Decision Cost Revenue Adj'!D44="No Change",'5. Re-Based Rev From Rates'!J44,IF(ISERROR(F44/J44),0,F44/J44)) -> 0 | O44: =IF('6. Decision Cost Revenue Adj'!D44="No Change",'5. Re-Based Rev From Rates'!K44,IF(ISERROR(G44/K44),0,G44/K44)) -> 0
C45: ='3. Re-Based Bill Det & Rates'!D45 -> Rate Class 24 | M45: =IF('6. Decision Cost Revenue Adj'!D45="No Change",'5. Re-Based Rev From Rates'!I45,IF(ISERROR(E45/I45/12),0,E45/I45/12)) -> 0 | N45: =IF('6. Decision Cost Revenue Adj'!D45="No Change",'5. Re-Based Rev From Rates'!J45,IF(ISERROR(F45/J45),0,F45/J45)) -> 0 | O45: =IF('6. Decision Cost Revenue Adj'!D45="No Change",'5. Re-Based Rev From Rates'!K45,IF(ISERROR(G45/K45),0,G45/K45)) -> 0
C46: ='3. Re-Based Bill Det & Rates'!D46 -> Rate Class 25 | M46: =IF('6. Decision Cost Revenue Adj'!D46="No Change",'5. Re-Based Rev From Rates'!I46,IF(ISERROR(E46/I46/12),0,E46/I46/12)) -> 0 | N46: =IF('6. Decision Cost Revenue Adj'!D46="No Change",'5. Re-Based Rev From Rates'!J46,IF(ISERROR(F46/J46),0,F46/J46)) -> 0 | O46: =IF('6. Decision Cost Revenue Adj'!D46="No Change",'5. Re-Based Rev From Rates'!K46,IF(ISERROR(G46/K46),0,G46/K46)) -> 0

Sheet 14. Adjust To Proposed Rates
A11: Proposed adjustments to Base Service Charge and Distribution Volumetric Rate. Enter the adjustments found in column M and N below into Sheet 9 of the 2013 IRM Rate Generator Model.
C20: Rate Class | E20: Proposed Base Service Charge | F20: Proposed Base Distribution Volumetric Rate kWh | G20: Proposed Base Distribution Volumetric Rate kW | I20: Current Base Service Charge | J20: Current Base Distribution Volumetric Rate kWh | K20: Current Base Distribution Volumetric Rate kW | M20: Adjustment Required Base Service Charge | N20: Adjustment Required Base Distribution Volumetric Rate kWh | O20: Adjustment Required Base Distribution Volumetric Rate kW
E21: A | F21: B | G21: C | I21: D | J21: E | K21: F | M21: G = A - D | N21: H = B - E | O21: I = C - F
C22: ='3. Re-Based Bill Det & Rates'!D22 -> Residential | E22: ='13. Proposed F V Rates'!M22 -> 15.76 | F22: ='13. Proposed F V Rates'!N22 -> 0.0158 | G22: ='13. Proposed F V Rates'!O22 -> 0 | I22: ='5. Re-Based Rev From Rates'!I22 -> 15.76 | J22: ='5. Re-Based Rev From Rates'!J22 -> 0.0158 | K22: ='5. Re-Based Rev From Rates'!K22 -> 0 | M22: =IF(ISERROR(E22-I22),0,E22-I22) -> 0 | N22: =IF(ISERROR(F22-J22),0,F22-J22) -> 0 | O22: =IF(ISERROR(G22-K22),0,G22-K22) -> 0
C23: ='3. Re-Based Bill Det & Rates'!D23 -> General Service Less Than 50 kW | E23: ='13. Proposed F V Rates'!M23 -> 37.09 | F23: ='13. Proposed F V Rates'!N23 -> 0.0135 | G23: ='13. Proposed F V Rates'!O23 -> 0 | I23: ='5. Re-Based Rev From Rates'!I23 -> 37.09 | J23: ='5. Re-Based Rev From Rates'!J23 -> 0.0135 | K23: ='5. Re-Based Rev From Rates'!K23 -> 0 | M23: =IF(ISERROR(E23-I23),0,E23-I23) -> 0 | N23: =IF(ISERROR(F23-J23),0,F23-J23) -> 0 | O23: =IF(ISERROR(G23-K23),0,G23-K23) -> 0
C24: ='3. Re-Based Bill Det & Rates'!D24 -> General Service 50 to 4,999 kW | E24: ='13. Proposed F V Rates'!M24 -> 176.2495592 | F24: ='13. Proposed F V Rates'!N24 -> 0 | G24: ='13. Proposed F V Rates'!O24 -> 4.161536237 | I24: ='5. Re-Based Rev From Rates'!I24 -> 177.4 | J24: ='5. Re-Based Rev From Rates'!J24 -> 0 | K24: ='5. Re-Based Rev From Rates'!K24 -> 4.1887 | M24: -1.150440843 | N24: 0 | O24: -0.02716376301
C25: ='3. Re-Based Bill Det & Rates'!D25 -> Unmetered Scattered Load | E25: ='13. Proposed F V Rates'!M25 -> 19.17 | F25: ='13. Proposed F V Rates'!N25 -> 0.0134 | G25: ='13. Proposed F V Rates'!O25 -> 0 | I25: ='5. Re-Based Rev From Rates'!I25 -> 19.17 | J25: ='5. Re-Based Rev From Rates'!J25 -> 0.0134 | K25: ='5. Re-Based Rev From Rates'!K25 -> 0 | M25: 0 | N25: 0 | O25: 0
C26: ='3. Re-Based Bill Det & Rates'!D26 -> Sentinel Lighting | E26: ='13. Proposed F V Rates'!M26 -> 12.6284658 | F26: ='13. Proposed F V Rates'!N26 -> 0 | G26: ='13. Proposed F V Rates'!O26 -> 15.75802218 | I26: ='5. Re-Based Rev From Rates'!I26 -> 9.76 | J26: ='5. Re-Based Rev From Rates'!J26 -> 0 | K26: ='5. Re-Based Rev From Rates'!K26 -> 12.1787 | M26: 2.868465804 | N26: 0 | O26: 3.579322181
C27: ='3. Re-Based Bill Det & Rates'!D27 -> Street Lighting | E27: ='13. Proposed F V Rates'!M27 -> 1.117147708 | F27: ='13. Proposed F V Rates'!N27 -> 0 | G27: ='13. Proposed F V Rates'!O27 -> 4.383022071 | I27: ='5. Re-Based Rev From Rates'!I27 -> 0.94 | J27: ='5. Re-Based Rev From Rates'!J27 -> 0 | K27: ='5. Re-Based Rev From Rates'!K27 -> 3.688 | M27: 0.177147708 | N27: 0 | O27: 0.6950220713
C28: ='3. Re-Based Bill Det & Rates'!D28 -> Rate Class 7 | M28: 0 | N28: 0 | O28: 0
C29: ='3. Re-Based Bill Det & Rates'!D29 -> Rate Class 8 | M29: 0 | N29: 0 | O29: 0
C30: ='3. Re-Based Bill Det & Rates'!D30 -> Rate Class 9 | M30: 0 | N30: 0 | O30: 0
C31: ='3. Re-Based Bill Det & Rates'!D31 -> Rate Class 10 | M31: 0 | N31: 0 | O31: 0
C32: ='3. Re-Based Bill Det & Rates'!D32 -> Rate Class 11 | M32: 0 | N32: 0 | O32: 0
C33: ='3. Re-Based Bill Det & Rates'!D33 -> Rate Class 12 | M33: 0 | N33: 0 | O33: 0
C34: ='3. Re-Based Bill Det & Rates'!D34 -> Rate Class 13 | M34: 0 | N34: 0 | O34: 0
C35: ='3. Re-Based Bill Det & Rates'!D35 -> Rate Class 14 | M35: 0 | N35: 0 | O35: 0
C36: ='3. Re-Based Bill Det & Rates'!D36 -> Rate Class 15 | M36: 0 | N36: 0 | O36: 0
C37: ='3. Re-Based Bill Det & Rates'!D37 -> Rate Class 16 | M37: 0 | N37: 0 | O37: 0
C38: ='3. Re-Based Bill Det & Rates'!D38 -> Rate Class 17 | M38: 0 | N38: 0 | O38: 0
C39: ='3. Re-Based Bill Det & Rates'!D39 -> Rate Class 18 | M39: 0 | N39: 0 | O39: 0
C40: ='3. Re-Based Bill Det & Rates'!D40 -> Rate Class 19 | M40: 0 | N40: 0 | O40: 0
C41: ='3. Re-Based Bill Det & Rates'!D41 -> Rate Class 20 | M41: 0 | N41: 0 | O41: 0
C42: ='3. Re-Based Bill Det & Rates'!D42 -> Rate Class 21 | M42: 0 | N42: 0 | O42: 0
C43: ='3. Re-Based Bill Det & Rates'!D43 -> Rate Class 22 | M43: 0 | N43: 0 | O43: 0
C44: ='3. Re-Based Bill Det & Rates'!D44 -> Rate Class 23 | M44: 0 | N44: 0 | O44: 0
C45: ='3. Re-Based Bill Det & Rates'!D45 -> Rate Class 24 | M45: 0 | N45: 0 | O45: 0
C46: ='3. Re-Based Bill Det & Rates'!D46 -> Rate Class 25 | M46: 0 | N46: 0 | O46: 0

Sheet F1.2 CalcTaxChg RRider OptA FV (hidden)
C2: ='1. Info'!#REF! -> 
C3: ='1. Info'!#REF! -> 
C4: ='1. Info'!#REF! -> 
C10: ='Z1.0 OEB Control Sheet'!#REF! -> 
B20: Control | C20: Rate Class | D20: Fixed Metric | E20: Vol Metric | G20: Service Charge % Revenue | H20: Distribution Volumetric Rate % Revenue kWh | I20: Distribution Volumetric Rate % Revenue kW | K20: Service Charge Revenue | L20: Distribution Volumetric Rate Revenue kWh | M20: Distribution Volumetric Rate Revenue kW | N20: Total Revenue by Rate Class | P20: Billed Customers or Connections | Q20: Billed kWh | R20: Billed kW | T20: Service Charge Rate Rider | U20: Distribution Volumetric Rate kWh Rate Rider | V20: Distribution Volumetric Rate kW Rate Rider
G21: A | H21: B | I21: C | K21: D = $N * A | L21: E = $N * B | M21: F = $N * C | N21: G = D + E + F | P21: H | Q21: I | R21: J | T21: K = D / H / 12 | U21: L = E / I | V21: M = F / J
B22: 1 | C22: ='3. Re-Based Bill Det & Rates'!D22 -> Residential | D22: ='3. Re-Based Bill Det & Rates'!E22 -> Customer | E22: ='3. Re-Based Bill Det & Rates'!F22 -> kWh | G22: =IF(ISERROR(#REF!*(#REF!/#REF!)),0,#REF!*(#REF!/#REF!)) -> 0 | H22: =IF(ISERROR(#REF!*(#REF!/#REF!)),0,#REF!*(#REF!/#REF!)) -> 0 | I22: =IF(ISERROR(#REF!*(#REF!/#REF!)),0,#REF!*(#REF!/#REF!)) -> 0 | K22: =IF(ISERROR($N$47*G22),"",$N$47*G22) ->  | L22: =IF(ISERROR($N$47*H22),"",$N$47*H22) ->  | M22: =IF(ISERROR($N$47*I22),"",$N$47*I22) ->  | N22: =SUM(K22:M22) -> 0 | P22: ='3. Re-Based Bill Det & Rates'!I22 -> 46900 | Q22: ='3. Re-Based Bill Det & Rates'!J22 -> 462790265 | R22: ='3. Re-Based Bill Det & Rates'!K22 -> 0 | T22: =IF(ISERROR(K22/P22/12),"",ROUND(K22/P22/12,6)) ->  | U22: =IF(ISERROR(L22/Q22),"",ROUND(L22/Q22,6)) ->  | V22: =IF(ISERROR(M22/R22),"",ROUND(M22/R22,6)) -> 
B23: 2 | C23: ='3. Re-Based Bill Det & Rates'!D23 -> General Service Less Than 50 kW | D23: ='3. Re-Based Bill Det & Rates'!E23 -> Customer | E23: ='3. Re-Based Bill Det & Rates'!F23 -> kWh | G23: =IF(ISERROR(#REF!*(#REF!/#REF!)),0,#REF!*(#REF!/#REF!)) -> 0 | H23: =IF(ISERROR(#REF!*(#REF!/#REF!)),0,#REF!*(#REF!/#REF!)) -> 0 | I23: =IF(ISERROR(#REF!*(#REF!/#REF!)),0,#REF!*(#REF!/#REF!)) -> 0 | N23: 0 | P23: ='3. Re-Based Bill Det & Rates'!I23 -> 4352 | Q23: ='3. Re-Based Bill Det & Rates'!J23 -> 122331880 | R23: ='3. Re-Based Bill Det & Rates'!K23 -> 0 | T23: =IF(ISERROR(K23/P23/12),"",ROUND(K23/P23/12,6)) ->  | U23: =IF(ISERROR(L23/Q23),"",ROUND(L23/Q23,6)) ->  | V23: =IF(ISERROR(M23/R23),"",ROUND(M23/R23,6)) -> 
B24: 3 | C24: ='3. Re-Based Bill Det & Rates'!D24 -> General Service 50 to 4,999 kW | D24: ='3. Re-Based Bill Det & Rates'!E24 -> Customer | E24: ='3. Re-Based Bill Det & Rates'!F24 -> kW | G24: =IF(ISERROR(#REF!*(#REF!/#REF!)),0,#REF!*(#REF!/#REF!)) -> 0 | H24: =IF(ISERROR(#REF!*(#REF!/#REF!)),0,#REF!*(#REF!/#REF!)) -> 0 | I24: =IF(ISERROR(#REF!*(#REF!/#REF!)),0,#REF!*(#REF!/#REF!)) -> 0 | N24: 0 | P24: ='3. Re-Based Bill Det & Rates'!I24 -> 848 | Q24: ='3. Re-Based Bill Det & Rates'!J24 -> 628090148 | R24: ='3. Re-Based Bill Det & Rates'!K24 -> 1818411
B25: 4 | C25: ='3. Re-Based Bill Det & Rates'!D25 -> Unmetered Scattered Load | D25: ='3. Re-Based Bill Det & Rates'!E25 -> Connection | E25: ='3. Re-Based Bill Det & Rates'!F25 -> kWh | G25: =IF(ISERROR(#REF!*(#REF!/#REF!)),0,#REF!*(#REF!/#REF!)) -> 0 | H25: =IF(ISERROR(#REF!*(#REF!/#REF!)),0,#REF!*(#REF!/#REF!)) -> 0 | I25: =IF(ISERROR(#REF!*(#REF!/#REF!)),0,#REF!*(#REF!/#REF!)) -> 0 | N25: 0 | P25: ='3. Re-Based Bill Det & Rates'!I25 -> 465 | Q25: ='3. Re-Based Bill Det & Rates'!J25 -> 2335428 | R25: ='3. Re-Based Bill Det & Rates'!K25 -> 0
B26: 5 | C26: ='3. Re-Based Bill Det & Rates'!D26 -> Sentinel Lighting | D26: ='3. Re-Based Bill Det & Rates'!E26 -> Connection | E26: ='3. Re-Based Bill Det & Rates'!F26 -> kW | G26: =IF(ISERROR(#REF!*(#REF!/#REF!)),0,#REF!*(#REF!/#REF!)) -> 0 | H26: =IF(ISERROR(#REF!*(#REF!/#REF!)),0,#REF!*(#REF!/#REF!)) -> 0 | I26: =IF(ISERROR(#REF!*(#REF!/#REF!)),0,#REF!*(#REF!/#REF!)) -> 0 | N26: 0 | P26: ='3. Re-Based Bill Det & Rates'!I26 -> 560 | Q26: ='3. Re-Based Bill Det & Rates'!J26 -> 292817 | R26: ='3. Re-Based Bill Det & Rates'!K26 -> 809
B27: 6 | C27: ='3. Re-Based Bill Det & Rates'!D27 -> Street Lighting | D27: ='3. Re-Based Bill Det & Rates'!E27 -> Connection | E27: ='3. Re-Based Bill Det & Rates'!F27 -> kW | G27: =IF(ISERROR(#REF!*(#REF!/#REF!)),0,#REF!*(#REF!/#REF!)) -> 0 | H27: =IF(ISERROR(#REF!*(#REF!/#REF!)),0,#REF!*(#REF!/#REF!)) -> 0 | I27: =IF(ISERROR(#REF!*(#REF!/#REF!)),0,#REF!*(#REF!/#REF!)) -> 0 | N27: 0 | P27: ='3. Re-Based Bill Det & Rates'!I27 -> 12408 | Q27: ='3. Re-Based Bill Det & Rates'!J27 -> 7467591 | R27: ='3. Re-Based Bill Det & Rates'!K27 -> 20107
B28: 7 | C28: ='3. Re-Based Bill Det & Rates'!D28 -> Rate Class 7 | D28: ='3. Re-Based Bill Det & Rates'!E28 -> NA | E28: ='3. Re-Based Bill Det & Rates'!F28 -> NA | G28: =IF(ISERROR(#REF!*(#REF!/#REF!)),0,#REF!*(#REF!/#REF!)) -> 0 | H28: =IF(ISERROR(#REF!*(#REF!/#REF!)),0,#REF!*(#REF!/#REF!)) -> 0 | I28: =IF(ISERROR(#REF!*(#REF!/#REF!)),0,#REF!*(#REF!/#REF!)) -> 0 | N28: 0 | P28: ='3. Re-Based Bill Det & Rates'!I28 -> 0 | Q28: ='3. Re-Based Bill Det & Rates'!J28 -> 0 | R28: ='3. Re-Based Bill Det & Rates'!K28 -> 0
B29: 8 | C29: ='3. Re-Based Bill Det & Rates'!D29 -> Rate Class 8 | D29: ='3. Re-Based Bill Det & Rates'!E29 -> NA | E29: ='3. Re-Based Bill Det & Rates'!F29 -> NA | G29: =IF(ISERROR(#REF!*(#REF!/#REF!)),0,#REF!*(#REF!/#REF!)) -> 0 | H29: =IF(ISERROR(#REF!*(#REF!/#REF!)),0,#REF!*(#REF!/#REF!)) -> 0 | I29: =IF(ISERROR(#REF!*(#REF!/#REF!)),0,#REF!*(#REF!/#REF!)) -> 0 | N29: 0 | P29: ='3. Re-Based Bill Det & Rates'!I29 -> 0 | Q29: ='3. Re-Based Bill Det & Rates'!J29 -> 0 | R29: ='3. Re-Based Bill Det & Rates'!K29 -> 0
B30: 9 | C30: ='3. Re-Based Bill Det & Rates'!D30 -> Rate Class 9 | D30: ='3. Re-Based Bill Det & Rates'!E30 -> NA | E30: ='3. Re-Based Bill Det & Rates'!F30 -> NA | G30: =IF(ISERROR(#REF!*(#REF!/#REF!)),0,#REF!*(#REF!/#REF!)) -> 0 | H30: =IF(ISERROR(#REF!*(#REF!/#REF!)),0,#REF!*(#REF!/#REF!)) -> 0 | I30: =IF(ISERROR(#REF!*(#REF!/#REF!)),0,#REF!*(#REF!/#REF!)) -> 0 | N30: 0 | P30: ='3. Re-Based Bill Det & Rates'!I30 -> 0 | Q30: ='3. Re-Based Bill Det & Rates'!J30 -> 0 | R30: ='3. Re-Based Bill Det & Rates'!K30 -> 0
B31: 10 | C31: ='3. Re-Based Bill Det & Rates'!D31 -> Rate Class 10 | D31: ='3. Re-Based Bill Det & Rates'!E31 -> NA | E31: ='3. Re-Based Bill Det & Rates'!F31 -> NA | G31: =IF(ISERROR(#REF!*(#REF!/#REF!)),0,#REF!*(#REF!/#REF!)) -> 0 | H31: =IF(ISERROR(#REF!*(#REF!/#REF!)),0,#REF!*(#REF!/#REF!)) -> 0 | I31: =IF(ISERROR(#REF!*(#REF!/#REF!)),0,#REF!*(#REF!/#REF!)) -> 0 | N31: 0 | P31: ='3. Re-Based Bill Det & Rates'!I31 -> 0 | Q31: ='3. Re-Based Bill Det & Rates'!J31 -> 0 | R31: ='3. Re-Based Bill Det & Rates'!K31 -> 0
B32: 11 | C32: ='3. Re-Based Bill Det & Rates'!D32 -> Rate Class 11 | D32: ='3. Re-Based Bill Det & Rates'!E32 -> NA | E32: ='3. Re-Based Bill Det & Rates'!F32 -> NA | G32: =IF(ISERROR(#REF!*(#REF!/#REF!)),0,#REF!*(#REF!/#REF!)) -> 0 | H32: =IF(ISERROR(#REF!*(#REF!/#REF!)),0,#REF!*(#REF!/#REF!)) -> 0 | I32: =IF(ISERROR(#REF!*(#REF!/#REF!)),0,#REF!*(#REF!/#REF!)) -> 0 | N32: 0 | P32: ='3. Re-Based Bill Det & Rates'!I32 -> 0 | Q32: ='3. Re-Based Bill Det & Rates'!J32 -> 0 | R32: ='3. Re-Based Bill Det & Rates'!K32 -> 0
B33: 12 | C33: ='3. Re-Based Bill Det & Rates'!D33 -> Rate Class 12 | D33: ='3. Re-Based Bill Det & Rates'!E33 -> NA | E33: ='3. Re-Based Bill Det & Rates'!F33 -> NA | G33: =IF(ISERROR(#REF!*(#REF!/#REF!)),0,#REF!*(#REF!/#REF!)) -> 0 | H33: =IF(ISERROR(#REF!*(#REF!/#REF!)),0,#REF!*(#REF!/#REF!)) -> 0 | I33: =IF(ISERROR(#REF!*(#REF!/#REF!)),0,#REF!*(#REF!/#REF!)) -> 0 | N33: 0 | P33: ='3. Re-Based Bill Det & Rates'!I33 -> 0 | Q33: ='3. Re-Based Bill Det & Rates'!J33 -> 0 | R33: ='3. Re-Based Bill Det & Rates'!K33 -> 0
B34: 13 | C34: ='3. Re-Based Bill Det & Rates'!D34 -> Rate Class 13 | D34: ='3. Re-Based Bill Det & Rates'!E34 -> NA | E34: ='3. Re-Based Bill Det & Rates'!F34 -> NA | G34: =IF(ISERROR(#REF!*(#REF!/#REF!)),0,#REF!*(#REF!/#REF!)) -> 0 | H34: =IF(ISERROR(#REF!*(#REF!/#REF!)),0,#REF!*(#REF!/#REF!)) -> 0 | I34: =IF(ISERROR(#REF!*(#REF!/#REF!)),0,#REF!*(#REF!/#REF!)) -> 0 | N34: 0 | P34: ='3. Re-Based Bill Det & Rates'!I34 -> 0 | Q34: ='3. Re-Based Bill Det & Rates'!J34 -> 0 | R34: ='3. Re-Based Bill Det & Rates'!K34 -> 0
B35: 14 | C35: ='3. Re-Based Bill Det & Rates'!D35 -> Rate Class 14 | D35: ='3. Re-Based Bill Det & Rates'!E35 -> NA | E35: ='3. Re-Based Bill Det & Rates'!F35 -> NA | G35: =IF(ISERROR(#REF!*(#REF!/#REF!)),0,#REF!*(#REF!/#REF!)) -> 0 | H35: =IF(ISERROR(#REF!*(#REF!/#REF!)),0,#REF!*(#REF!/#REF!)) -> 0 | I35: =IF(ISERROR(#REF!*(#REF!/#REF!)),0,#REF!*(#REF!/#REF!)) -> 0 | N35: 0 | P35: ='3. Re-Based Bill Det & Rates'!I35 -> 0 | Q35: ='3. Re-Based Bill Det & Rates'!J35 -> 0 | R35: ='3. Re-Based Bill Det & Rates'!K35 -> 0
B36: 15 | C36: ='3. Re-Based Bill Det & Rates'!D36 -> Rate Class 15 | D36: ='3. Re-Based Bill Det & Rates'!E36 -> NA | E36: ='3. Re-Based Bill Det & Rates'!F36 -> NA | G36: =IF(ISERROR(#REF!*(#REF!/#REF!)),0,#REF!*(#REF!/#REF!)) -> 0 | H36: =IF(ISERROR(#REF!*(#REF!/#REF!)),0,#REF!*(#REF!/#REF!)) -> 0 | I36: =IF(ISERROR(#REF!*(#REF!/#REF!)),0,#REF!*(#REF!/#REF!)) -> 0 | N36: 0 | P36: ='3. Re-Based Bill Det & Rates'!I36 -> 0 | Q36: ='3. Re-Based Bill Det & Rates'!J36 -> 0 | R36: ='3. Re-Based Bill Det & Rates'!K36 -> 0
B37: 16 | C37: ='3. Re-Based Bill Det & Rates'!D37 -> Rate Class 16 | D37: ='3. Re-Based Bill Det & Rates'!E37 -> NA | E37: ='3. Re-Based Bill Det & Rates'!F37 -> NA | G37: =IF(ISERROR(#REF!*(#REF!/#REF!)),0,#REF!*(#REF!/#REF!)) -> 0 | H37: =IF(ISERROR(#REF!*(#REF!/#REF!)),0,#REF!*(#REF!/#REF!)) -> 0 | I37: =IF(ISERROR(#REF!*(#REF!/#REF!)),0,#REF!*(#REF!/#REF!)) -> 0 | N37: 0 | P37: ='3. Re-Based Bill Det & Rates'!I37 -> 0 | Q37: ='3. Re-Based Bill Det & Rates'!J37 -> 0 | R37: ='3. Re-Based Bill Det & Rates'!K37 -> 0
B38: 17 | C38: ='3. Re-Based Bill Det & Rates'!D38 -> Rate Class 17 | D38: ='3. Re-Based Bill Det & Rates'!E38 -> NA | E38: ='3. Re-Based Bill Det & Rates'!F38 -> NA | G38: =IF(ISERROR(#REF!*(#REF!/#REF!)),0,#REF!*(#REF!/#REF!)) -> 0 | H38: =IF(ISERROR(#REF!*(#REF!/#REF!)),0,#REF!*(#REF!/#REF!)) -> 0 | I38: =IF(ISERROR(#REF!*(#REF!/#REF!)),0,#REF!*(#REF!/#REF!)) -> 0 | N38: 0 | P38: ='3. Re-Based Bill Det & Rates'!I38 -> 0 | Q38: ='3. Re-Based Bill Det & Rates'!J38 -> 0 | R38: ='3. Re-Based Bill Det & Rates'!K38 -> 0
B39: 18 | C39: ='3. Re-Based Bill Det & Rates'!D39 -> Rate Class 18 | D39: ='3. Re-Based Bill Det & Rates'!E39 -> NA | E39: ='3. Re-Based Bill Det & Rates'!F39 -> NA | G39: =IF(ISERROR(#REF!*(#REF!/#REF!)),0,#REF!*(#REF!/#REF!)) -> 0 | H39: =IF(ISERROR(#REF!*(#REF!/#REF!)),0,#REF!*(#REF!/#REF!)) -> 0 | I39: =IF(ISERROR(#REF!*(#REF!/#REF!)),0,#REF!*(#REF!/#REF!)) -> 0 | N39: 0 | P39: ='3. Re-Based Bill Det & Rates'!I39 -> 0 | Q39: ='3. Re-Based Bill Det & Rates'!J39 -> 0 | R39: ='3. Re-Based Bill Det & Rates'!K39 -> 0
B40: 19 | C40: ='3. Re-Based Bill Det & Rates'!D40 -> Rate Class 19 | D40: ='3. Re-Based Bill Det & Rates'!E40 -> NA | E40: ='3. Re-Based Bill Det & Rates'!F40 -> NA | G40: =IF(ISERROR(#REF!*(#REF!/#REF!)),0,#REF!*(#REF!/#REF!)) -> 0 | H40: =IF(ISERROR(#REF!*(#REF!/#REF!)),0,#REF!*(#REF!/#REF!)) -> 0 | I40: =IF(ISERROR(#REF!*(#REF!/#REF!)),0,#REF!*(#REF!/#REF!)) -> 0 | N40: 0 | P40: ='3. Re-Based Bill Det & Rates'!I40 -> 0 | Q40: ='3. Re-Based Bill Det & Rates'!J40 -> 0 | R40: ='3. Re-Based Bill Det & Rates'!K40 -> 0
B41: 20 | C41: ='3. Re-Based Bill Det & Rates'!D41 -> Rate Class 20 | D41: ='3. Re-Based Bill Det & Rates'!E41 -> NA | E41: ='3. Re-Based Bill Det & Rates'!F41 -> NA | G41: =IF(ISERROR(#REF!*(#REF!/#REF!)),0,#REF!*(#REF!/#REF!)) -> 0 | H41: =IF(ISERROR(#REF!*(#REF!/#REF!)),0,#REF!*(#REF!/#REF!)) -> 0 | I41: =IF(ISERROR(#REF!*(#REF!/#REF!)),0,#REF!*(#REF!/#REF!)) -> 0 | N41: 0 | P41: ='3. Re-Based Bill Det & Rates'!I41 -> 0 | Q41: ='3. Re-Based Bill Det & Rates'!J41 -> 0 | R41: ='3. Re-Based Bill Det & Rates'!K41 -> 0
B42: 21 | C42: ='3. Re-Based Bill Det & Rates'!D42 -> Rate Class 21 | D42: ='3. Re-Based Bill Det & Rates'!E42 -> NA | E42: ='3. Re-Based Bill Det & Rates'!F42 -> NA | G42: =IF(ISERROR(#REF!*(#REF!/#REF!)),0,#REF!*(#REF!/#REF!)) -> 0 | H42: =IF(ISERROR(#REF!*(#REF!/#REF!)),0,#REF!*(#REF!/#REF!)) -> 0 | I42: =IF(ISERROR(#REF!*(#REF!/#REF!)),0,#REF!*(#REF!/#REF!)) -> 0 | N42: 0 | P42: ='3. Re-Based Bill Det & Rates'!I42 -> 0 | Q42: ='3. Re-Based Bill Det & Rates'!J42 -> 0 | R42: ='3. Re-Based Bill Det & Rates'!K42 -> 0
B43: 22 | C43: ='3. Re-Based Bill Det & Rates'!D43 -> Rate Class 22 | D43: ='3. Re-Based Bill Det & Rates'!E43 -> NA | E43: ='3. Re-Based Bill Det & Rates'!F43 -> NA | G43: =IF(ISERROR(#REF!*(#REF!/#REF!)),0,#REF!*(#REF!/#REF!)) -> 0 | H43: =IF(ISERROR(#REF!*(#REF!/#REF!)),0,#REF!*(#REF!/#REF!)) -> 0 | I43: =IF(ISERROR(#REF!*(#REF!/#REF!)),0,#REF!*(#REF!/#REF!)) -> 0 | N43: 0 | P43: ='3. Re-Based Bill Det & Rates'!I43 -> 0 | Q43: ='3. Re-Based Bill Det & Rates'!J43 -> 0 | R43: ='3. Re-Based Bill Det & Rates'!K43 -> 0
B44: 23 | C44: ='3. Re-Based Bill Det & Rates'!D44 -> Rate Class 23 | D44: ='3. Re-Based Bill Det & Rates'!E44 -> NA | E44: ='3. Re-Based Bill Det & Rates'!F44 -> NA | G44: =IF(ISERROR(#REF!*(#REF!/#REF!)),0,#REF!*(#REF!/#REF!)) -> 0 | H44: =IF(ISERROR(#REF!*(#REF!/#REF!)),0,#REF!*(#REF!/#REF!)) -> 0 | I44: =IF(ISERROR(#REF!*(#REF!/#REF!)),0,#REF!*(#REF!/#REF!)) -> 0 | N44: 0 | P44: ='3. Re-Based Bill Det & Rates'!I44 -> 0 | Q44: ='3. Re-Based Bill Det & Rates'!J44 -> 0 | R44: ='3. Re-Based Bill Det & Rates'!K44 -> 0
B45: 24 | C45: ='3. Re-Based Bill Det & Rates'!D45 -> Rate Class 24 | D45: ='3. Re-Based Bill Det & Rates'!E45 -> NA | E45: ='3. Re-Based Bill Det & Rates'!F45 -> NA | G45: =IF(ISERROR(#REF!*(#REF!/#REF!)),0,#REF!*(#REF!/#REF!)) -> 0 | H45: =IF(ISERROR(#REF!*(#REF!/#REF!)),0,#REF!*(#REF!/#REF!)) -> 0 | I45: =IF(ISERROR(#REF!*(#REF!/#REF!)),0,#REF!*(#REF!/#REF!)) -> 0 | N45: 0 | P45: ='3. Re-Based Bill Det & Rates'!I45 -> 0 | Q45: ='3. Re-Based Bill Det & Rates'!J45 -> 0 | R45: ='3. Re-Based Bill Det & Rates'!K45 -> 0
B46: 25 | C46: ='3. Re-Based Bill Det & Rates'!D46 -> Rate Class 25 | D46: ='3. Re-Based Bill Det & Rates'!E46 -> NA | E46: ='3. Re-Based Bill Det & Rates'!F46 -> NA | G46: =IF(ISERROR(#REF!*(#REF!/#REF!)),0,#REF!*(#REF!/#REF!)) -> 0 | H46: =IF(ISERROR(#REF!*(#REF!/#REF!)),0,#REF!*(#REF!/#REF!)) -> 0 | I46: =IF(ISERROR(#REF!*(#REF!/#REF!)),0,#REF!*(#REF!/#REF!)) -> 0 | N46: 0 | P46: ='3. Re-Based Bill Det & Rates'!I46 -> 0 | Q46: ='3. Re-Based Bill Det & Rates'!J46 -> 0 | R46: ='3. Re-Based Bill Det & Rates'!K46 -> 0
K47: =SUM(K22:K46) -> 0 | L47: =SUM(L22:L46) -> 0 | M47: =SUM(M22:M46) -> 0 | N47: =#REF! -> 
N48: =SUM(N22:N46)-N47 -> 
N49: N
T50: Enter the above value onto Sheet "J2.1 Tax Change Rate Rider" of the 2010 OEB IRM3 Rate Generator.

Sheet G4.2 Incr Cap RRider Opt A FV (hidden)
C2: ='1. Info'!#REF! -> 
C3: ='1. Info'!#REF! -> 
C4: ='1. Info'!#REF! -> 
C10: ='Z1.0 OEB Control Sheet'!#REF! -> 
B20: Control | C20: Rate Class | D20: Fixed Metric | E20: Vol Metric | G20: Service Charge % Revenue | H20: Distribution Volumetric Rate % Revenue kWh | I20: Distribution Volumetric Rate % Revenue kW | K20: Service Charge Revenue | L20: Distribution Volumetric Rate Revenue kWh | M20: Distribution Volumetric Rate Revenue kW | N20: Total Revenue by Rate Class | P20: Billed Customers or Connections | Q20: Billed kWh | R20: Billed kW | T20: Service Charge Rate Rider | U20: Distribution Volumetric Rate kWh Rate Rider | V20: Distribution Volumetric Rate kW Rate Rider
G21: A | H21: B | I21: C | K21: D = $N * A | L21: E = $N * B | M21: F = $N * C | N21: G = D + E + F | P21: H | Q21: I | R21: J | T21: K = D / H / 12 | U21: L = E / I | V21: M = F / J
B22: 1 | C22: ='3. Re-Based Bill Det & Rates'!D22 -> Residential | D22: ='3. Re-Based Bill Det & Rates'!E22 -> Customer | E22: ='3. Re-Based Bill Det & Rates'!F22 -> kWh | G22: =IF(ISERROR(#REF!*(#REF!/#REF!)),0,#REF!*(#REF!/#REF!)) -> 0 | H22: =IF(ISERROR(#REF!*(#REF!/#REF!)),0,#REF!*(#REF!/#REF!)) -> 0 | I22: =IF(ISERROR(#REF!*(#REF!/#REF!)),0,#REF!*(#REF!/#REF!)) -> 0 | K22: =IF(ISERROR($N$47*G22),"",$N$47*G22) ->  | L22: =IF(ISERROR($N$47*H22),"",$N$47*H22) ->  | M22: =IF(ISERROR($N$47*I22),"",$N$47*I22) ->  | N22: =SUM(K22:M22) -> 0 | P22: ='3. Re-Based Bill Det & Rates'!I22 -> 46900 | Q22: ='3. Re-Based Bill Det & Rates'!J22 -> 462790265 | R22: ='3. Re-Based Bill Det & Rates'!K22 -> 0 | T22: =IF(ISERROR(K22/P22/12),"",ROUND(K22/P22/12,6)) ->  | U22: =IF(ISERROR(L22/Q22),"",ROUND(L22/Q22,6)) ->  | V22: =IF(ISERROR(M22/R22),"",ROUND(M22/R22,6)) -> 
B23: 2 | C23: ='3. Re-Based Bill Det & Rates'!D23 -> General Service Less Than 50 kW | D23: ='3. Re-Based Bill Det & Rates'!E23 -> Customer | E23: ='3. Re-Based Bill Det & Rates'!F23 -> kWh | G23: =IF(ISERROR(#REF!*(#REF!/#REF!)),0,#REF!*(#REF!/#REF!)) -> 0 | H23: =IF(ISERROR(#REF!*(#REF!/#REF!)),0,#REF!*(#REF!/#REF!)) -> 0 | I23: =IF(ISERROR(#REF!*(#REF!/#REF!)),0,#REF!*(#REF!/#REF!)) -> 0 | N23: 0 | P23: ='3. Re-Based Bill Det & Rates'!I23 -> 4352 | Q23: ='3. Re-Based Bill Det & Rates'!J23 -> 122331880 | R23: ='3. Re-Based Bill Det & Rates'!K23 -> 0 | T23: =IF(ISERROR(K23/P23/12),"",ROUND(K23/P23/12,6)) ->  | U23: =IF(ISERROR(L23/Q23),"",ROUND(L23/Q23,6)) ->  | V23: =IF(ISERROR(M23/R23),"",ROUND(M23/R23,6)) -> 
B24: 3 | C24: ='3. Re-Based Bill Det & Rates'!D24 -> General Service 50 to 4,999 kW | D24: ='3. Re-Based Bill Det & Rates'!E24 -> Customer | E24: ='3. Re-Based Bill Det & Rates'!F24 -> kW | G24: =IF(ISERROR(#REF!*(#REF!/#REF!)),0,#REF!*(#REF!/#REF!)) -> 0 | H24: =IF(ISERROR(#REF!*(#REF!/#REF!)),0,#REF!*(#REF!/#REF!)) -> 0 | I24: =IF(ISERROR(#REF!*(#REF!/#REF!)),0,#REF!*(#REF!/#REF!)) -> 0 | N24: 0 | P24: ='3. Re-Based Bill Det & Rates'!I24 -> 848 | Q24: ='3. Re-Based Bill Det & Rates'!J24 -> 628090148 | R24: ='3. Re-Based Bill Det & Rates'!K24 -> 1818411
B25: 4 | C25: ='3. Re-Based Bill Det & Rates'!D25 -> Unmetered Scattered Load | D25: ='3. Re-Based Bill Det & Rates'!E25 -> Connection | E25: ='3. Re-Based Bill Det & Rates'!F25 -> kWh | G25: =IF(ISERROR(#REF!*(#REF!/#REF!)),0,#REF!*(#REF!/#REF!)) -> 0 | H25: =IF(ISERROR(#REF!*(#REF!/#REF!)),0,#REF!*(#REF!/#REF!)) -> 0 | I25: =IF(ISERROR(#REF!*(#REF!/#REF!)),0,#REF!*(#REF!/#REF!)) -> 0 | N25: 0 | P25: ='3. Re-Based Bill Det & Rates'!I25 -> 465 | Q25: ='3. Re-Based Bill Det & Rates'!J25 -> 2335428 | R25: ='3. Re-Based Bill Det & Rates'!K25 -> 0
B26: 5 | C26: ='3. Re-Based Bill Det & Rates'!D26 -> Sentinel Lighting | D26: ='3. Re-Based Bill Det & Rates'!E26 -> Connection | E26: ='3. Re-Based Bill Det & Rates'!F26 -> kW | G26: =IF(ISERROR(#REF!*(#REF!/#REF!)),0,#REF!*(#REF!/#REF!)) -> 0 | H26: =IF(ISERROR(#REF!*(#REF!/#REF!)),0,#REF!*(#REF!/#REF!)) -> 0 | I26: =IF(ISERROR(#REF!*(#REF!/#REF!)),0,#REF!*(#REF!/#REF!)) -> 0 | N26: 0 | P26: ='3. Re-Based Bill Det & Rates'!I26 -> 560 | Q26: ='3. Re-Based Bill Det & Rates'!J26 -> 292817 | R26: ='3. Re-Based Bill Det & Rates'!K26 -> 809
B27: 6 | C27: ='3. Re-Based Bill Det & Rates'!D27 -> Street Lighting | D27: ='3. Re-Based Bill Det & Rates'!E27 -> Connection | E27: ='3. Re-Based Bill Det & Rates'!F27 -> kW | G27: =IF(ISERROR(#REF!*(#REF!/#REF!)),0,#REF!*(#REF!/#REF!)) -> 0 | H27: =IF(ISERROR(#REF!*(#REF!/#REF!)),0,#REF!*(#REF!/#REF!)) -> 0 | I27: =IF(ISERROR(#REF!*(#REF!/#REF!)),0,#REF!*(#REF!/#REF!)) -> 0 | N27: 0 | P27: ='3. Re-Based Bill Det & Rates'!I27 -> 12408 | Q27: ='3. Re-Based Bill Det & Rates'!J27 -> 7467591 | R27: ='3. Re-Based Bill Det & Rates'!K27 -> 20107
B28: 7 | C28: ='3. Re-Based Bill Det & Rates'!D28 -> Rate Class 7 | D28: ='3. Re-Based Bill Det & Rates'!E28 -> NA | E28: ='3. Re-Based Bill Det & Rates'!F28 -> NA | G28: =IF(ISERROR(#REF!*(#REF!/#REF!)),0,#REF!*(#REF!/#REF!)) -> 0 | H28: =IF(ISERROR(#REF!*(#REF!/#REF!)),0,#REF!*(#REF!/#REF!)) -> 0 | I28: =IF(ISERROR(#REF!*(#REF!/#REF!)),0,#REF!*(#REF!/#REF!)) -> 0 | N28: 0 | P28: ='3. Re-Based Bill Det & Rates'!I28 -> 0 | Q28: ='3. Re-Based Bill Det & Rates'!J28 -> 0 | R28: ='3. Re-Based Bill Det & Rates'!K28 -> 0
B29: 8 | C29: ='3. Re-Based Bill Det & Rates'!D29 -> Rate Class 8 | D29: ='3. Re-Based Bill Det & Rates'!E29 -> NA | E29: ='3. Re-Based Bill Det & Rates'!F29 -> NA | G29: =IF(ISERROR(#REF!*(#REF!/#REF!)),0,#REF!*(#REF!/#REF!)) -> 0 | H29: =IF(ISERROR(#REF!*(#REF!/#REF!)),0,#REF!*(#REF!/#REF!)) -> 0 | I29: =IF(ISERROR(#REF!*(#REF!/#REF!)),0,#REF!*(#REF!/#REF!)) -> 0 | N29: 0 | P29: ='3. Re-Based Bill Det & Rates'!I29 -> 0 | Q29: ='3. Re-Based Bill Det & Rates'!J29 -> 0 | R29: ='3. Re-Based Bill Det & Rates'!K29 -> 0
B30: 9 | C30: ='3. Re-Based Bill Det & Rates'!D30 -> Rate Class 9 | D30: ='3. Re-Based Bill Det & Rates'!E30 -> NA | E30: ='3. Re-Based Bill Det & Rates'!F30 -> NA | G30: =IF(ISERROR(#REF!*(#REF!/#REF!)),0,#REF!*(#REF!/#REF!)) -> 0 | H30: =IF(ISERROR(#REF!*(#REF!/#REF!)),0,#REF!*(#REF!/#REF!)) -> 0 | I30: =IF(ISERROR(#REF!*(#REF!/#REF!)),0,#REF!*(#REF!/#REF!)) -> 0 | N30: 0 | P30: ='3. Re-Based Bill Det & Rates'!I30 -> 0 | Q30: ='3. Re-Based Bill Det & Rates'!J30 -> 0 | R30: ='3. Re-Based Bill Det & Rates'!K30 -> 0
B31: 10 | C31: ='3. Re-Based Bill Det & Rates'!D31 -> Rate Class 10 | D31: ='3. Re-Based Bill Det & Rates'!E31 -> NA | E31: ='3. Re-Based Bill Det & Rates'!F31 -> NA | G31: =IF(ISERROR(#REF!*(#REF!/#REF!)),0,#REF!*(#REF!/#REF!)) -> 0 | H31: =IF(ISERROR(#REF!*(#REF!/#REF!)),0,#REF!*(#REF!/#REF!)) -> 0 | I31: =IF(ISERROR(#REF!*(#REF!/#REF!)),0,#REF!*(#REF!/#REF!)) -> 0 | N31: 0 | P31: ='3. Re-Based Bill Det & Rates'!I31 -> 0 | Q31: ='3. Re-Based Bill Det & Rates'!J31 -> 0 | R31: ='3. Re-Based Bill Det & Rates'!K31 -> 0
B32: 11 | C32: ='3. Re-Based Bill Det & Rates'!D32 -> Rate Class 11 | D32: ='3. Re-Based Bill Det & Rates'!E32 -> NA | E32: ='3. Re-Based Bill Det & Rates'!F32 -> NA | G32: =IF(ISERROR(#REF!*(#REF!/#REF!)),0,#REF!*(#REF!/#REF!)) -> 0 | H32: =IF(ISERROR(#REF!*(#REF!/#REF!)),0,#REF!*(#REF!/#REF!)) -> 0 | I32: =IF(ISERROR(#REF!*(#REF!/#REF!)),0,#REF!*(#REF!/#REF!)) -> 0 | N32: 0 | P32: ='3. Re-Based Bill Det & Rates'!I32 -> 0 | Q32: ='3. Re-Based Bill Det & Rates'!J32 -> 0 | R32: ='3. Re-Based Bill Det & Rates'!K32 -> 0
B33: 12 | C33: ='3. Re-Based Bill Det & Rates'!D33 -> Rate Class 12 | D33: ='3. Re-Based Bill Det & Rates'!E33 -> NA | E33: ='3. Re-Based Bill Det & Rates'!F33 -> NA | G33: =IF(ISERROR(#REF!*(#REF!/#REF!)),0,#REF!*(#REF!/#REF!)) -> 0 | H33: =IF(ISERROR(#REF!*(#REF!/#REF!)),0,#REF!*(#REF!/#REF!)) -> 0 | I33: =IF(ISERROR(#REF!*(#REF!/#REF!)),0,#REF!*(#REF!/#REF!)) -> 0 | N33: 0 | P33: ='3. Re-Based Bill Det & Rates'!I33 -> 0 | Q33: ='3. Re-Based Bill Det & Rates'!J33 -> 0 | R33: ='3. Re-Based Bill Det & Rates'!K33 -> 0
B34: 13 | C34: ='3. Re-Based Bill Det & Rates'!D34 -> Rate Class 13 | D34: ='3. Re-Based Bill Det & Rates'!E34 -> NA | E34: ='3. Re-Based Bill Det & Rates'!F34 -> NA | G34: =IF(ISERROR(#REF!*(#REF!/#REF!)),0,#REF!*(#REF!/#REF!)) -> 0 | H34: =IF(ISERROR(#REF!*(#REF!/#REF!)),0,#REF!*(#REF!/#REF!)) -> 0 | I34: =IF(ISERROR(#REF!*(#REF!/#REF!)),0,#REF!*(#REF!/#REF!)) -> 0 | N34: 0 | P34: ='3. Re-Based Bill Det & Rates'!I34 -> 0 | Q34: ='3. Re-Based Bill Det & Rates'!J34 -> 0 | R34: ='3. Re-Based Bill Det & Rates'!K34 -> 0
B35: 14 | C35: ='3. Re-Based Bill Det & Rates'!D35 -> Rate Class 14 | D35: ='3. Re-Based Bill Det & Rates'!E35 -> NA | E35: ='3. Re-Based Bill Det & Rates'!F35 -> NA | G35: =IF(ISERROR(#REF!*(#REF!/#REF!)),0,#REF!*(#REF!/#REF!)) -> 0 | H35: =IF(ISERROR(#REF!*(#REF!/#REF!)),0,#REF!*(#REF!/#REF!)) -> 0 | I35: =IF(ISERROR(#REF!*(#REF!/#REF!)),0,#REF!*(#REF!/#REF!)) -> 0 | N35: 0 | P35: ='3. Re-Based Bill Det & Rates'!I35 -> 0 | Q35: ='3. Re-Based Bill Det & Rates'!J35 -> 0 | R35: ='3. Re-Based Bill Det & Rates'!K35 -> 0
B36: 15 | C36: ='3. Re-Based Bill Det & Rates'!D36 -> Rate Class 15 | D36: ='3. Re-Based Bill Det & Rates'!E36 -> NA | E36: ='3. Re-Based Bill Det & Rates'!F36 -> NA | G36: =IF(ISERROR(#REF!*(#REF!/#REF!)),0,#REF!*(#REF!/#REF!)) -> 0 | H36: =IF(ISERROR(#REF!*(#REF!/#REF!)),0,#REF!*(#REF!/#REF!)) -> 0 | I36: =IF(ISERROR(#REF!*(#REF!/#REF!)),0,#REF!*(#REF!/#REF!)) -> 0 | N36: 0 | P36: ='3. Re-Based Bill Det & Rates'!I36 -> 0 | Q36: ='3. Re-Based Bill Det & Rates'!J36 -> 0 | R36: ='3. Re-Based Bill Det & Rates'!K36 -> 0
B37: 16 | C37: ='3. Re-Based Bill Det & Rates'!D37 -> Rate Class 16 | D37: ='3. Re-Based Bill Det & Rates'!E37 -> NA | E37: ='3. Re-Based Bill Det & Rates'!F37 -> NA | G37: =IF(ISERROR(#REF!*(#REF!/#REF!)),0,#REF!*(#REF!/#REF!)) -> 0 | H37: =IF(ISERROR(#REF!*(#REF!/#REF!)),0,#REF!*(#REF!/#REF!)) -> 0 | I37: =IF(ISERROR(#REF!*(#REF!/#REF!)),0,#REF!*(#REF!/#REF!)) -> 0 | N37: 0 | P37: ='3. Re-Based Bill Det & Rates'!I37 -> 0 | Q37: ='3. Re-Based Bill Det & Rates'!J37 -> 0 | R37: ='3. Re-Based Bill Det & Rates'!K37 -> 0
B38: 17 | C38: ='3. Re-Based Bill Det & Rates'!D38 -> Rate Class 17 | D38: ='3. Re-Based Bill Det & Rates'!E38 -> NA | E38: ='3. Re-Based Bill Det & Rates'!F38 -> NA | G38: =IF(ISERROR(#REF!*(#REF!/#REF!)),0,#REF!*(#REF!/#REF!)) -> 0 | H38: =IF(ISERROR(#REF!*(#REF!/#REF!)),0,#REF!*(#REF!/#REF!)) -> 0 | I38: =IF(ISERROR(#REF!*(#REF!/#REF!)),0,#REF!*(#REF!/#REF!)) -> 0 | N38: 0 | P38: ='3. Re-Based Bill Det & Rates'!I38 -> 0 | Q38: ='3. Re-Based Bill Det & Rates'!J38 -> 0 | R38: ='3. Re-Based Bill Det & Rates'!K38 -> 0
B39: 18 | C39: ='3. Re-Based Bill Det & Rates'!D39 -> Rate Class 18 | D39: ='3. Re-Based Bill Det & Rates'!E39 -> NA | E39: ='3. Re-Based Bill Det & Rates'!F39 -> NA | G39: =IF(ISERROR(#REF!*(#REF!/#REF!)),0,#REF!*(#REF!/#REF!)) -> 0 | H39: =IF(ISERROR(#REF!*(#REF!/#REF!)),0,#REF!*(#REF!/#REF!)) -> 0 | I39: =IF(ISERROR(#REF!*(#REF!/#REF!)),0,#REF!*(#REF!/#REF!)) -> 0 | N39: 0 | P39: ='3. Re-Based Bill Det & Rates'!I39 -> 0 | Q39: ='3. Re-Based Bill Det & Rates'!J39 -> 0 | R39: ='3. Re-Based Bill Det & Rates'!K39 -> 0
B40: 19 | C40: ='3. Re-Based Bill Det & Rates'!D40 -> Rate Class 19 | D40: ='3. Re-Based Bill Det & Rates'!E40 -> NA | E40: ='3. Re-Based Bill Det & Rates'!F40 -> NA | G40: =IF(ISERROR(#REF!*(#REF!/#REF!)),0,#REF!*(#REF!/#REF!)) -> 0 | H40: =IF(ISERROR(#REF!*(#REF!/#REF!)),0,#REF!*(#REF!/#REF!)) -> 0 | I40: =IF(ISERROR(#REF!*(#REF!/#REF!)),0,#REF!*(#REF!/#REF!)) -> 0 | N40: 0 | P40: ='3. Re-Based Bill Det & Rates'!I40 -> 0 | Q40: ='3. Re-Based Bill Det & Rates'!J40 -> 0 | R40: ='3. Re-Based Bill Det & Rates'!K40 -> 0
B41: 20 | C41: ='3. Re-Based Bill Det & Rates'!D41 -> Rate Class 20 | D41: ='3. Re-Based Bill Det & Rates'!E41 -> NA | E41: ='3. Re-Based Bill Det & Rates'!F41 -> NA | G41: =IF(ISERROR(#REF!*(#REF!/#REF!)),0,#REF!*(#REF!/#REF!)) -> 0 | H41: =IF(ISERROR(#REF!*(#REF!/#REF!)),0,#REF!*(#REF!/#REF!)) -> 0 | I41: =IF(ISERROR(#REF!*(#REF!/#REF!)),0,#REF!*(#REF!/#REF!)) -> 0 | N41: 0 | P41: ='3. Re-Based Bill Det & Rates'!I41 -> 0 | Q41: ='3. Re-Based Bill Det & Rates'!J41 -> 0 | R41: ='3. Re-Based Bill Det & Rates'!K41 -> 0
B42: 21 | C42: ='3. Re-Based Bill Det & Rates'!D42 -> Rate Class 21 | D42: ='3. Re-Based Bill Det & Rates'!E42 -> NA | E42: ='3. Re-Based Bill Det & Rates'!F42 -> NA | G42: =IF(ISERROR(#REF!*(#REF!/#REF!)),0,#REF!*(#REF!/#REF!)) -> 0 | H42: =IF(ISERROR(#REF!*(#REF!/#REF!)),0,#REF!*(#REF!/#REF!)) -> 0 | I42: =IF(ISERROR(#REF!*(#REF!/#REF!)),0,#REF!*(#REF!/#REF!)) -> 0 | N42: 0 | P42: ='3. Re-Based Bill Det & Rates'!I42 -> 0 | Q42: ='3. Re-Based Bill Det & Rates'!J42 -> 0 | R42: ='3. Re-Based Bill Det & Rates'!K42 -> 0
B43: 22 | C43: ='3. Re-Based Bill Det & Rates'!D43 -> Rate Class 22 | D43: ='3. Re-Based Bill Det & Rates'!E43 -> NA | E43: ='3. Re-Based Bill Det & Rates'!F43 -> NA | G43: =IF(ISERROR(#REF!*(#REF!/#REF!)),0,#REF!*(#REF!/#REF!)) -> 0 | H43: =IF(ISERROR(#REF!*(#REF!/#REF!)),0,#REF!*(#REF!/#REF!)) -> 0 | I43: =IF(ISERROR(#REF!*(#REF!/#REF!)),0,#REF!*(#REF!/#REF!)) -> 0 | N43: 0 | P43: ='3. Re-Based Bill Det & Rates'!I43 -> 0 | Q43: ='3. Re-Based Bill Det & Rates'!J43 -> 0 | R43: ='3. Re-Based Bill Det & Rates'!K43 -> 0
B44: 23 | C44: ='3. Re-Based Bill Det & Rates'!D44 -> Rate Class 23 | D44: ='3. Re-Based Bill Det & Rates'!E44 -> NA | E44: ='3. Re-Based Bill Det & Rates'!F44 -> NA | G44: =IF(ISERROR(#REF!*(#REF!/#REF!)),0,#REF!*(#REF!/#REF!)) -> 0 | H44: =IF(ISERROR(#REF!*(#REF!/#REF!)),0,#REF!*(#REF!/#REF!)) -> 0 | I44: =IF(ISERROR(#REF!*(#REF!/#REF!)),0,#REF!*(#REF!/#REF!)) -> 0 | N44: 0 | P44: ='3. Re-Based Bill Det & Rates'!I44 -> 0 | Q44: ='3. Re-Based Bill Det & Rates'!J44 -> 0 | R44: ='3. Re-Based Bill Det & Rates'!K44 -> 0
B45: 24 | C45: ='3. Re-Based Bill Det & Rates'!D45 -> Rate Class 24 | D45: ='3. Re-Based Bill Det & Rates'!E45 -> NA | E45: ='3. Re-Based Bill Det & Rates'!F45 -> NA | G45: =IF(ISERROR(#REF!*(#REF!/#REF!)),0,#REF!*(#REF!/#REF!)) -> 0 | H45: =IF(ISERROR(#REF!*(#REF!/#REF!)),0,#REF!*(#REF!/#REF!)) -> 0 | I45: =IF(ISERROR(#REF!*(#REF!/#REF!)),0,#REF!*(#REF!/#REF!)) -> 0 | N45: 0 | P45: ='3. Re-Based Bill Det & Rates'!I45 -> 0 | Q45: ='3. Re-Based Bill Det & Rates'!J45 -> 0 | R45: ='3. Re-Based Bill Det & Rates'!K45 -> 0
B46: 25 | C46: ='3. Re-Based Bill Det & Rates'!D46 -> Rate Class 25 | D46: ='3. Re-Based Bill Det & Rates'!E46 -> NA | E46: ='3. Re-Based Bill Det & Rates'!F46 -> NA | G46: =IF(ISERROR(#REF!*(#REF!/#REF!)),0,#REF!*(#REF!/#REF!)) -> 0 | H46: =IF(ISERROR(#REF!*(#REF!/#REF!)),0,#REF!*(#REF!/#REF!)) -> 0 | I46: =IF(ISERROR(#REF!*(#REF!/#REF!)),0,#REF!*(#REF!/#REF!)) -> 0 | N46: 0 | P46: ='3. Re-Based Bill Det & Rates'!I46 -> 0 | Q46: ='3. Re-Based Bill Det & Rates'!J46 -> 0 | R46: ='3. Re-Based Bill Det & Rates'!K46 -> 0
G47: =SUM(G22:G46) -> 0 | H47: =SUM(H22:H46) -> 0 | I47: =SUM(I22:I46) -> 0 | K47: =SUM(K22:K46) -> 0 | L47: =SUM(L22:L46) -> 0 | M47: =SUM(M22:M46) -> 0 | N47: =#REF! -> 
N48: =SUM(N22:N46)-N47 -> 
N49: N | T49: Enter the above value onto Sheet "J1.2 Incremental Cap Fund Adder" of the 2010 OEB IRM3 Rate Generator.

Sheet Z1.0 OEB Control Sheet (hidden)
A1: Sheet Number | B1: Assignment | C1: Sheet Title | D1: Core Sheet Name | E1: Chrs | F1: OEB Audit | G1: Purpose of Sheet
A2: Sheet1 | B2: A1.1 | C2: LDC Information | D2: A1.1 LDC Information | E2: =LEN(D2) -> 20 | F2: No | G2: Enter LDC Data
A3: Sheet2 | B3: A2.1 | C3: Table of Contents | D3: A2.1 Table of Contents | E3: 22 | F3: No | G3: Table of Contents
A4: Sheet3 | B4: B1.1 | C4: Rate Class Selection, Re-Based Billing Determinants & Current Tariff Rates | D4: B1.1 Re-Based Bill Det & Rates | E4: 30 | F4: No | G4: Set Up Rate Classes and enter Re-Based Billing Determinants and Current Tariff Rates
A5: Sheet4 | B5: B1.2 | C5: Removal of Rate Adders | D5: B1.2 Removal of Rate Adders | E5: 27 | F5: No | G5: Removal of Rate Adders
A6: Sheet5 | B6: B1.3 | C6: Calculated Current Revenue From Rates | D6: B1.3 Re-Based Rev From Rates | E6: 28 | F6: No | G6: Calculated Current Revenue From Rates
A7: Sheet6 | B7: C1.1 | C7: Decision - Cost Revenue Adjustments by Rate Class | D7: C1.1 Decision Cost Revenue Adj | E7: 30 | F7: No | G7: Decision - Cost Revenue Adjustments by Rate Class
A8: Sheet7 | B8: C1.2 | C8: Revenue Offsets Allocation | D8: C1.2 Revenue Offsets Allocation | E8: 31 | F8: No | G8: Revenue Offsets Allocation
A9: Sheet8 | B9: C1.3 | C9: Transformer Allowance | D9: C1.3 Transformer Allowance | E9: 26 | F9: No | G9: Transformer Allowance
A10: Sheet9 | B10: C1.4 | C10: Revenue / Cost Ratio Revenue | D10: C1.4 R C Ratio Revenue | E10: 22 | F10: No | G10: Revenue / Cost Ratio Revenue
A11: Sheet10 | B11: C1.5 | C11: Proposed Revenue / Cost Ratio Adjustment | D11: C1.5 Proposed R C Ratio Adj | E11: 27 | F11: No | G11: Proposed Revenue / Cost Ratio Adjustment
A12: Sheet11 | B12: C1.6 | C12: Proposed Revenue from Revenue / Cost Ratio Adjustment | D12: C1.6 Proposed Revenue | E12: 21 | F12: No | G12: Proposed Revenue from Revenue / Cost Ratio Adjustment
A13: Sheet12 | B13: C1.7 | C13: Proposed Fixed Variable Revenue Allocation | D13: C1.7 Proposed F V Rev Alloc | E13: 27 | F13: No | G13: Proposed Fixed Variable Revenue Allocation
A14: Sheet13 | B14: C1.8 | C14: Proposed Fixed and Variable Rates | D14: C1.8 Proposed F V Rates | E14: 23 | F14: No | G14: Proposed Fixed and Variable Rates
A15: Sheet14 | B15: C1.9 | C15: Adjustment required to Proposed Rates | D15: C1.9 Adjust To Proposed Rates | E15: 29 | F15: No | G15: Adjustment required to Proposed Rates
A16: Sheet15 | B16: Z1.0 | C16: OEB Control Sheet | D16: Z1.0 OEB Control Sheet | E16: 22 | F16: No | G16: Not Shown
